{"text_format":"1","workbook":"xlsx","n_sheets":1,"sheets":["WF Feeder"],"not_rendered":{"charts":0,"images":5,"macros":1,"external_links":0,"defined_names":0,"comments":0,"pivot_tables":0},"unopened":[],"bounds":{"document_bytes":16777216,"sheet_cells":100000,"rows_first":2000,"rows_last":500,"rows_between":2000,"halvings":0,"cell_chars":16384,"cell_head_chars":4096},"cells_cut":0,"cells_raw":0,"read":"whole","date_system":"1900"}

{"sheet":"WF Feeder","index":0,"n_rows":282,"n_cols":74,"rows_kept":282,"cut":false,"hidden":false,"merged":[]}
[null,null,null,null,null,null,null,null,null,null,null,null,null,null,null,null,null,null,null,null,null,null,null,null,null,null,null,null,null,null,null,null,null,null,null,null,null,null,null,null,null,null,null,null,null,null,null,null,null,null,null,null,null,null,null,null,"Work Area in Hidden Cells"]
[null,"Calculator for \"Equivalence\" or Reduced Wind Plant Collector System Impedances to Individual Feeders…. Or to One Feeder"]
[]
[null,null,null,null,null,"Description for this Collector System Equivalence --->","Test Wind Plant",null,null,null,null,null,null,null,null,null,null,null,null,null,null,null,null,null,null,null,null,null,null,"Collector System (kV) =",34.5]
[null,null,null,null,null,null,null,null,null,null,null,null,null,null,null,null,null,null,null,null,null,null,null,null,null,null,null,null,null,"Total Turbines on this Feeder N =",null,{"$f":"IF(AE5=0,\"!\",0)","v":"!"},null,null,null,null,null,null,null,null,null,null,null,null,null,null,"Cable Lookup",null,null,null,null,null,null,null,null,null,null,null,null,null,null,null,null,null,null,"Cable Database"]
[null,null,null,null,null,null,null,null,null,null,null,null,null,null,null,null,null,null,null,null,null,null,null,null,null,null,null,null,null,"MVA of Each Turbine =",null,{"$f":"IF(AE6=0,\"!\",0)","v":"!"},null,null,null,null,null,null,null,null,null,null,null,null,null,null,null,null,null,"Base kV =",{"$f":"AE4","v":34.5}]
[null,null,null,null,null,null,null,null,null,null,null,null,null,null,null,null,null,null,null,null,null,null,null,null,null,null,null,null,null,"Rated Phase Current (Amps) =",{"$f":"AE6*1000/(AE4*SQRT(3))","v":0},null,null,null,"Input Z+",null,null,"Input Zo",null,null,"Calculated Values",null,null,null,null,null,null,null,null,null,null,null,null,null,null,null,null,null,null,null,null,null,null,null,null,"Nomenclature","R+(Ω)","X+(Ω)","C+(uF)","Ro(Ω)","Xo(Ω)","Co(uF)","Amps","@ºC"]
[null,null,null,null,null,null,null,null,null,null,null,null,null,null,null,null,null,null,null,null,null,null,null,null,null,null,null,null,null,null,null,null,"n'","R+","X+","B+","Ro","Xo","Bo","R+ n'^2","X+ n'^2","Ro n'^2","Xo n'^2",null,null,"Length(ft)","Choose Cable","R+","X+","B+","Ro","Xo","Bo",null,null,null,null,null,"Work Area",null,0,null,0,null,null,"Select Cable",0,0,0,0,0,0,0,0]
[null,null,null,null,null,"Z",1,2,3,4,5,6,7,8,9,10,11,12,13,14,15,16,17,18,19,20,21,22,null,{"$f":"IF(ISNA(VLOOKUP($BL9,$BF$9:$BH$239,2,0)),0,VLOOKUP($BL9,$BF$9:$BH$239,2,0))","v":0},{"$f":"IF(ISNA(VLOOKUP($BL9,$BF$9:$BH$239,3,0)),\"||\",VLOOKUP($BL9,$BF$9:$BH$239,3,0))","v":"||"},{"$f":"IF(AND(AE9<>\"||\",OR(AG9=0,AH9=0,AI9=0,AK9=0,AL9=0)),\"!\",0)","v":0},null,null,null,null,null,null,null,{"$f":"$AH9*$AG9^2","v":0},{"$f":"$AI9*$AG9^2","v":0},{"$f":"$AK9*$AG9^2","v":0},{"$f":"$AL9*$AG9^2","v":0},null,{"$f":"AE9","v":"||"},null,"Select Cable",{"$f":"VLOOKUP($AU9,$BN$8:$BV$37,2,0)*($AT9/1000)*(100/$AY$6^2)","v":0},{"$f":"VLOOKUP($AU9,$BN$8:$BV$37,3,0)*($AT9/1000)*(100/$AY$6^2)","v":0},{"$f":"VLOOKUP($AU9,$BN$8:$BV$37,4,0)*(120*PI()*0.000001)*($AY$6^2/100)*($AT9/1000)","v":0},{"$f":"VLOOKUP($AU9,$BN$8:$BV$37,5,0)*($AT9/1000)*(100/$AY$6^2)","v":0},{"$f":"VLOOKUP($AU9,$BN$8:$BV$37,6,0)*($AT9/1000)*(100/$AY$6^2)","v":0},{"$f":"VLOOKUP($AU9,$BN$8:$BV$37,7,0)*(120*PI()*0.000001)*($AY$6^2/100)*($AT9/1000)","v":0},null,null,null,null,{"$f":"IF(BJ9>BJ8,BJ9,0)","v":0},{"$f":"IF(BH9<>\"(Z) \",\"Input  -->\",\"\")","v":""},{"$f":"CONCATENATE(\"(Z) \",$G$11)","v":"(Z) "},{"$f":"IF(BH9=\"(Z) \", 0,1)","v":0},{"$f":"IF(BI9=1,1,0)","v":0},null,1,null,"1/0 AWG Al Trefoil",0.21299999999999999,5.1999999999999998E-2,3.9100000000000003E-2,0.40799999999999997,3.3000000000000002E-2,3.9100000000000003E-2,221,90]
[null,null,null,"Equivalent Feeder and Turbine:",null,1,null,null,null,null,null,null,null,null,null,null,null,null,null,null,null,null,null,null,null,null,null,null,null,{"$f":"IF(ISNA(VLOOKUP($BL10,$BF$9:$BH$239,2,0)),0,VLOOKUP($BL10,$BF$9:$BH$239,2,0))","v":0},{"$f":"IF(ISNA(VLOOKUP($BL10,$BF$9:$BH$239,3,0)),\"||\",VLOOKUP($BL10,$BF$9:$BH$239,3,0))","v":"||"},{"$f":"IF(AND(AE10<>\"||\",OR(AG10=0,AH10=0,AI10=0,AK10=0,AL10=0)),\"!\",0)","v":0},null,null,null,null,null,null,null,{"$f":"$AH10*$AG10^2","v":0},{"$f":"$AI10*$AG10^2","v":0},{"$f":"$AK10*$AG10^2","v":0},{"$f":"$AL10*$AG10^2","v":0},null,"||",null,"Select Cable",0,0,0,0,0,0,null,null,null,null,{"$f":"IF(BJ10>BJ9,BJ10,0)","v":0},{"$f":"IF(BH10<>\"(Z) \",\"Input  -->\",\"\")","v":""},{"$f":"CONCATENATE(\"(Z) \",$G$12)","v":"(Z) "},{"$f":"IF(BH10=\"(Z) \", 0,1)","v":0},{"$f":"IF(BI10=1,BJ9+1,BJ9)","v":0},null,2,null,"2/0 AWG Al Trefoil",0.16900000000000001,0.05,4.19E-2,0.32500000000000001,3.2000000000000001E-2,4.19E-2,251,90]
[null,"MVA =",{"$f":"AE5*AE6","v":0},null,null,2,{"$f":"IF(H$10<>0,CONCATENATE(G$9,\"-\",$F11),\"\")","v":""},null,null,null,null,null,null,null,null,null,null,null,null,null,null,null,null,null,null,null,null,null,null,0,"||",0,null,null,null,null,null,null,null,0,0,0,0,null,"||",null,"Select Cable",0,0,0,0,0,0,null,null,null,null,{"$f":"IF(BJ11>BJ10,BJ11,0)","v":0},{"$f":"IF(BH11<>\"(Z) \",\"Input  -->\",\"\")","v":""},{"$f":"CONCATENATE(\"(Z) \",$G$13)","v":"(Z) "},{"$f":"IF(BH11=\"(Z) \", 0,1)","v":0},{"$f":"IF(BI11=1,BJ10+1,BJ10)","v":0},null,3,null,"3/0 AWG Al Trefoil",0.13500000000000001,4.9000000000000002E-2,4.5100000000000001E-2,0.25900000000000001,0.03,4.5100000000000001E-2,286,90]
[null,"Irated (amps) =",{"$f":"AE5*AE7","v":0},null,null,3,{"$f":"IF(I$10<>0,CONCATENATE(G$9,\"-\",$F12),\"\")","v":""},{"$f":"IF(I$11<>0,CONCATENATE(H$9,\"-\",$F12),\"\")","v":""},null,null,null,null,null,null,null,null,null,null,null,null,null,null,null,null,null,null,null,null,null,0,"||",0,null,null,null,null,null,null,null,0,0,0,0,null,"||",null,"Select Cable",0,0,0,0,0,0,null,null,null,null,{"$f":"IF(BJ12>BJ11,BJ12,0)","v":0},"",{"$f":"CONCATENATE(\"(Z) \",$G$14)","v":"(Z) "},{"$f":"IF(BH12=\"(Z) \", 0,1)","v":0},0,null,4,null,"4/0 AWG Al Trefoil",0.109,4.7E-2,4.8599999999999997E-2,0.20699999999999999,2.9000000000000001E-2,4.8599999999999997E-2,327,90]
[null,null,null,null,null,4,{"$f":"IF(J$10<>0,CONCATENATE(G$9,\"-\",$F13),\"\")","v":""},{"$f":"IF(J$11<>0,CONCATENATE(H$9,\"-\",$F13),\"\")","v":""},{"$f":"IF(J$12<>0,CONCATENATE(I$9,\"-\",$F13),\"\")","v":""},null,null,null,null,null,null,null,null,null,null,null,null,null,null,null,null,null,null,null,null,0,"||",0,null,null,null,null,null,null,null,0,0,0,0,null,"||",null,"Select Cable",0,0,0,0,0,0,null,null,null,null,{"$f":"IF(BJ13>BJ12,BJ13,0)","v":0},"",{"$f":"CONCATENATE(\"(Z) \",$G$15)","v":"(Z) "},{"$f":"IF(BH13=\"(Z) \", 0,1)","v":0},0,null,5,null,"250 KCM Al Trefoil",0.09,4.4999999999999998E-2,5.1900000000000002E-2,0.33400000000000002,2.7E-2,5.1900000000000002E-2,359,90]
[null,null,null,null,null,5,{"$f":"IF(K$10<>0,CONCATENATE(G$9,\"-\",$F14),\"\")","v":""},{"$f":"IF(K$11<>0,CONCATENATE(H$9,\"-\",$F14),\"\")","v":""},{"$f":"IF(K$12<>0,CONCATENATE(I$9,\"-\",$F14),\"\")","v":""},{"$f":"IF(K$13<>0,CONCATENATE(J$9,\"-\",$F14),\"\")","v":""},null,null,null,null,null,null,null,null,null,null,null,null,null,null,null,null,null,null,null,0,"||",0,null,null,null,null,null,null,null,{"$f":"$AH14*$AG14^2","v":0},0,0,0,null,"||",null,"Select Cable",0,0,0,0,0,0,null,null,null,null,0,"",{"$f":"CONCATENATE(\"(Z) \",$G$16)","v":"(Z) "},{"$f":"IF(BH14=\"(Z) \", 0,1)","v":0},0,null,6,null,"350 KCM Al Trefoil",6.6000000000000003E-2,4.2999999999999997E-2,5.8299999999999998E-2,0.24099999999999999,2.5000000000000001E-2,5.8299999999999998E-2,432,90]
[null,null,{"$f":"CONCATENATE($AE$4,\"kV\")","v":"34.5kV"},null,null,6,{"$f":"IF(L$10<>0,CONCATENATE(G$9,\"-\",$F15),\"\")","v":""},{"$f":"IF(L$11<>0,CONCATENATE(H$9,\"-\",$F15),\"\")","v":""},{"$f":"IF(L$12<>0,CONCATENATE(I$9,\"-\",$F15),\"\")","v":""},{"$f":"IF(L$13<>0,CONCATENATE(J$9,\"-\",$F15),\"\")","v":""},{"$f":"IF(L$14<>0,CONCATENATE(K$9,\"-\",$F15),\"\")","v":""},null,null,null,null,null,null,null,null,null,null,null,null,null,null,null,null,null,null,0,"||",0,null,null,null,null,null,null,null,0,{"$f":"$AI15*$AG15^2","v":0},0,0,null,"||",null,"Select Cable",0,0,0,0,0,0,null,null,null,null,0,"",{"$f":"CONCATENATE(\"(Z) \",$G$17)","v":"(Z) "},0,0,null,7,null,"500 KCM Al Trefoil",4.8000000000000001E-2,4.1000000000000002E-2,6.6199999999999995E-2,0.17299999999999999,2.3E-2,6.6199999999999995E-2,521,90]
[null,null,null,null,null,7,{"$f":"IF(M$10<>0,CONCATENATE(G$9,\"-\",$F16),\"\")","v":""},{"$f":"IF(M$11<>0,CONCATENATE(H$9,\"-\",$F16),\"\")","v":""},{"$f":"IF(M$12<>0,CONCATENATE(I$9,\"-\",$F16),\"\")","v":""},{"$f":"IF(M$13<>0,CONCATENATE(J$9,\"-\",$F16),\"\")","v":""},{"$f":"IF(M$14<>0,CONCATENATE(K$9,\"-\",$F16),\"\")","v":""},{"$f":"IF(M$15<>0,CONCATENATE(L$9,\"-\",$F16),\"\")","v":""},null,null,null,null,null,null,null,null,null,null,null,null,null,null,null,null,null,0,"||",0,null,null,null,null,null,null,null,0,0,0,0,null,"||",null,"Select Cable",0,0,0,0,0,0,null,null,null,null,0,"",{"$f":"CONCATENATE(\"(Z) \",$G$18)","v":"(Z) "},0,0,null,8,null,"750 KCM Al Trefoil",3.4000000000000002E-2,3.9E-2,7.7499999999999999E-2,0.11600000000000001,2.1000000000000001E-2,7.7499999999999999E-2,639,90]
[null,null,null,"pu",null,8,{"$f":"IF(N$10<>0,CONCATENATE(G$9,\"-\",$F17),\"\")","v":""},{"$f":"IF(N$11<>0,CONCATENATE(H$9,\"-\",$F17),\"\")","v":""},{"$f":"IF(N$12<>0,CONCATENATE(I$9,\"-\",$F17),\"\")","v":""},{"$f":"IF(N$13<>0,CONCATENATE(J$9,\"-\",$F17),\"\")","v":""},{"$f":"IF(N$14<>0,CONCATENATE(K$9,\"-\",$F17),\"\")","v":""},{"$f":"IF(N$15<>0,CONCATENATE(L$9,\"-\",$F17),\"\")","v":""},{"$f":"IF(N$16<>0,CONCATENATE(M$9,\"-\",$F17),\"\")","v":""},null,null,null,null,null,null,null,null,null,null,null,null,null,null,null,null,0,"||",0,null,null,null,null,null,null,null,0,0,0,0,null,"||",null,"Select Cable",0,0,0,0,0,0,null,null,null,null,0,"",{"$f":"CONCATENATE(\"(Z) \",$G$19)","v":"(Z) "},0,0,null,9,null,"1000 KCM Al Trefoil",2.8000000000000001E-2,3.6999999999999998E-2,8.6499999999999994E-2,8.7999999999999995E-2,0.02,8.6499999999999994E-2,726,90]
[null,null,"R+ =",{"$f":"AN241","v":""},null,9,{"$f":"IF(O$10<>0,CONCATENATE(G$9,\"-\",$F18),\"\")","v":""},{"$f":"IF(O$11<>0,CONCATENATE(H$9,\"-\",$F18),\"\")","v":""},{"$f":"IF(O$12<>0,CONCATENATE(I$9,\"-\",$F18),\"\")","v":""},{"$f":"IF(O$13<>0,CONCATENATE(J$9,\"-\",$F18),\"\")","v":""},{"$f":"IF(O$14<>0,CONCATENATE(K$9,\"-\",$F18),\"\")","v":""},{"$f":"IF(O$15<>0,CONCATENATE(L$9,\"-\",$F18),\"\")","v":""},{"$f":"IF(O$16<>0,CONCATENATE(M$9,\"-\",$F18),\"\")","v":""},{"$f":"IF(O$17<>0,CONCATENATE(N$9,\"-\",$F18),\"\")","v":""},null,null,null,null,null,null,null,null,null,null,null,null,null,null,null,0,"||",0,null,null,null,null,null,null,null,0,0,0,0,null,"||",null,"Select Cable",0,0,0,0,0,0,null,null,null,null,0,"",{"$f":"CONCATENATE(\"(Z) \",$G$20)","v":"(Z) "},0,0,null,10,null,"1250 KCM Al Trefoil",2.5000000000000001E-2,3.5000000000000003E-2,9.4600000000000004E-2,7.0000000000000007E-2,1.9E-2,9.4600000000000004E-2,790,90]
[null,null,"X+ =",{"$f":"AO241","v":""},null,10,{"$f":"IF(P$10<>0,CONCATENATE(G$9,\"-\",$F19),\"\")","v":""},{"$f":"IF(P$11<>0,CONCATENATE(H$9,\"-\",$F19),\"\")","v":""},{"$f":"IF(P$12<>0,CONCATENATE(I$9,\"-\",$F19),\"\")","v":""},{"$f":"IF(P$13<>0,CONCATENATE(J$9,\"-\",$F19),\"\")","v":""},{"$f":"IF(P$14<>0,CONCATENATE(K$9,\"-\",$F19),\"\")","v":""},{"$f":"IF(P$15<>0,CONCATENATE(L$9,\"-\",$F19),\"\")","v":""},{"$f":"IF(P$16<>0,CONCATENATE(M$9,\"-\",$F19),\"\")","v":""},{"$f":"IF(P$17<>0,CONCATENATE(N$9,\"-\",$F19),\"\")","v":""},{"$f":"IF(P$18<>0,CONCATENATE(O$9,\"-\",$F19),\"\")","v":""},null,null,null,null,null,null,null,null,null,null,null,null,null,null,0,"||",0,null,null,null,null,null,null,null,0,0,0,0,null,"||",null,"Select Cable",0,0,0,0,0,0,null,null,null,null,0,"",{"$f":"CONCATENATE(\"(Z) \",$G$21)","v":"(Z) "},0,0,null,11,null,"1500 KCM Al Trefoil",0.02,3.5000000000000003E-2,0.1017,0.10299999999999999,1.7000000000000001E-2,0.1017,893,90]
[null,null,"B+ =",{"$f":"AJ241","v":0},null,11,{"$f":"IF(Q$10<>0,CONCATENATE(G$9,\"-\",$F20),\"\")","v":""},{"$f":"IF(Q$11<>0,CONCATENATE(H$9,\"-\",$F20),\"\")","v":""},{"$f":"IF(Q$12<>0,CONCATENATE(I$9,\"-\",$F20),\"\")","v":""},{"$f":"IF(Q$13<>0,CONCATENATE(J$9,\"-\",$F20),\"\")","v":""},{"$f":"IF(Q$14<>0,CONCATENATE(K$9,\"-\",$F20),\"\")","v":""},{"$f":"IF(Q$15<>0,CONCATENATE(L$9,\"-\",$F20),\"\")","v":""},{"$f":"IF(Q$16<>0,CONCATENATE(M$9,\"-\",$F20),\"\")","v":""},{"$f":"IF(Q$17<>0,CONCATENATE(N$9,\"-\",$F20),\"\")","v":""},{"$f":"IF(Q$18<>0,CONCATENATE(O$9,\"-\",$F20),\"\")","v":""},{"$f":"IF(Q$19<>0,CONCATENATE(P$9,\"-\",$F20),\"\")","v":""},null,null,null,null,null,null,null,null,null,null,null,null,null,0,"||",0,null,null,null,null,null,null,null,0,0,0,0,null,"||",null,"Select Cable",0,0,0,0,0,0,null,null,null,null,0,"",{"$f":"CONCATENATE(\"(Z) \",$G$22)","v":"(Z) "},0,0,null,12]
[null,null,"B+/2 =",{"$f":"D20/2","v":0},null,12,{"$f":"IF(R$10<>0,CONCATENATE(G$9,\"-\",$F21),\"\")","v":""},{"$f":"IF(R$11<>0,CONCATENATE(H$9,\"-\",$F21),\"\")","v":""},{"$f":"IF(R$12<>0,CONCATENATE(I$9,\"-\",$F21),\"\")","v":""},{"$f":"IF(R$13<>0,CONCATENATE(J$9,\"-\",$F21),\"\")","v":""},{"$f":"IF(R$14<>0,CONCATENATE(K$9,\"-\",$F21),\"\")","v":""},{"$f":"IF(R$15<>0,CONCATENATE(L$9,\"-\",$F21),\"\")","v":""},{"$f":"IF(R$16<>0,CONCATENATE(M$9,\"-\",$F21),\"\")","v":""},{"$f":"IF(R$17<>0,CONCATENATE(N$9,\"-\",$F21),\"\")","v":""},{"$f":"IF(R$18<>0,CONCATENATE(O$9,\"-\",$F21),\"\")","v":""},{"$f":"IF(R$19<>0,CONCATENATE(P$9,\"-\",$F21),\"\")","v":""},{"$f":"IF(R$20<>0,CONCATENATE(Q$9,\"-\",$F21),\"\")","v":""},null,null,null,null,null,null,null,null,null,null,null,null,0,"||",0,null,null,null,null,null,null,null,0,0,0,0,null,"||",null,"Select Cable",0,0,0,0,0,0,null,null,null,null,0,"",{"$f":"CONCATENATE(\"(Z) \",$G$23)","v":"(Z) "},0,0,null,13]
[null,null,null,null,null,13,{"$f":"IF(S$10<>0,CONCATENATE(G$9,\"-\",$F22),\"\")","v":""},{"$f":"IF(S$11<>0,CONCATENATE(H$9,\"-\",$F22),\"\")","v":""},{"$f":"IF(S$12<>0,CONCATENATE(I$9,\"-\",$F22),\"\")","v":""},{"$f":"IF(S$13<>0,CONCATENATE(J$9,\"-\",$F22),\"\")","v":""},{"$f":"IF(S$14<>0,CONCATENATE(K$9,\"-\",$F22),\"\")","v":""},{"$f":"IF(S$15<>0,CONCATENATE(L$9,\"-\",$F22),\"\")","v":""},{"$f":"IF(S$16<>0,CONCATENATE(M$9,\"-\",$F22),\"\")","v":""},{"$f":"IF(S$17<>0,CONCATENATE(N$9,\"-\",$F22),\"\")","v":""},{"$f":"IF(S$18<>0,CONCATENATE(O$9,\"-\",$F22),\"\")","v":""},{"$f":"IF(S$19<>0,CONCATENATE(P$9,\"-\",$F22),\"\")","v":""},{"$f":"IF(S$20<>0,CONCATENATE(Q$9,\"-\",$F22),\"\")","v":""},{"$f":"IF(S$21<>0,CONCATENATE(R$9,\"-\",$F22),\"\")","v":""},null,null,null,null,null,null,null,null,null,null,null,0,"||",0,null,null,null,null,null,null,null,0,0,0,0,null,"||",null,"Select Cable",0,0,0,0,0,0,null,null,null,null,0,"",{"$f":"CONCATENATE(\"(Z) \",$G$24)","v":"(Z) "},0,0,null,14]
[null,null,null,null,null,14,{"$f":"IF(T$10<>0,CONCATENATE(G$9,\"-\",$F23),\"\")","v":""},{"$f":"IF(T$11<>0,CONCATENATE(H$9,\"-\",$F23),\"\")","v":""},{"$f":"IF(T$12<>0,CONCATENATE(I$9,\"-\",$F23),\"\")","v":""},{"$f":"IF(T$13<>0,CONCATENATE(J$9,\"-\",$F23),\"\")","v":""},{"$f":"IF(T$14<>0,CONCATENATE(K$9,\"-\",$F23),\"\")","v":""},{"$f":"IF(T$15<>0,CONCATENATE(L$9,\"-\",$F23),\"\")","v":""},{"$f":"IF(T$16<>0,CONCATENATE(M$9,\"-\",$F23),\"\")","v":""},{"$f":"IF(T$17<>0,CONCATENATE(N$9,\"-\",$F23),\"\")","v":""},{"$f":"IF(T$18<>0,CONCATENATE(O$9,\"-\",$F23),\"\")","v":""},{"$f":"IF(T$19<>0,CONCATENATE(P$9,\"-\",$F23),\"\")","v":""},{"$f":"IF(T$20<>0,CONCATENATE(Q$9,\"-\",$F23),\"\")","v":""},{"$f":"IF(T$21<>0,CONCATENATE(R$9,\"-\",$F23),\"\")","v":""},{"$f":"IF(T$22<>0,CONCATENATE(S$9,\"-\",$F23),\"\")","v":""},null,null,null,null,null,null,null,null,null,null,0,"||",0,null,null,null,null,null,null,null,0,0,0,0,null,"||",null,"Select Cable",0,0,0,0,0,0,null,null,null,null,0,"",{"$f":"CONCATENATE(\"(Z) \",$G$25)","v":"(Z) "},0,0,null,15]
[null,null,null,null,null,15,{"$f":"IF(U$10<>0,CONCATENATE(G$9,\"-\",$F24),\"\")","v":""},{"$f":"IF(U$11<>0,CONCATENATE(H$9,\"-\",$F24),\"\")","v":""},{"$f":"IF(U$12<>0,CONCATENATE(I$9,\"-\",$F24),\"\")","v":""},{"$f":"IF(U$13<>0,CONCATENATE(J$9,\"-\",$F24),\"\")","v":""},{"$f":"IF(U$14<>0,CONCATENATE(K$9,\"-\",$F24),\"\")","v":""},{"$f":"IF(U$15<>0,CONCATENATE(L$9,\"-\",$F24),\"\")","v":""},{"$f":"IF(U$16<>0,CONCATENATE(M$9,\"-\",$F24),\"\")","v":""},{"$f":"IF(U$17<>0,CONCATENATE(N$9,\"-\",$F24),\"\")","v":""},{"$f":"IF(U$18<>0,CONCATENATE(O$9,\"-\",$F24),\"\")","v":""},{"$f":"IF(U$19<>0,CONCATENATE(P$9,\"-\",$F24),\"\")","v":""},{"$f":"IF(U$20<>0,CONCATENATE(Q$9,\"-\",$F24),\"\")","v":""},{"$f":"IF(U$21<>0,CONCATENATE(R$9,\"-\",$F24),\"\")","v":""},{"$f":"IF(U$22<>0,CONCATENATE(S$9,\"-\",$F24),\"\")","v":""},{"$f":"IF(U$23<>0,CONCATENATE(T$9,\"-\",$F24),\"\")","v":""},null,null,null,null,null,null,null,null,null,0,"||",0,null,null,null,null,null,null,null,0,0,0,0,null,"||",null,"Select Cable",0,0,0,0,0,0,null,null,null,null,0,"",{"$f":"CONCATENATE(\"(Z) \",$G$26)","v":"(Z) "},0,0,null,16]
[null,null,null,null,null,16,{"$f":"IF(V$10<>0,CONCATENATE(G$9,\"-\",$F25),\"\")","v":""},{"$f":"IF(V$11<>0,CONCATENATE(H$9,\"-\",$F25),\"\")","v":""},{"$f":"IF(V$12<>0,CONCATENATE(I$9,\"-\",$F25),\"\")","v":""},{"$f":"IF(V$13<>0,CONCATENATE(J$9,\"-\",$F25),\"\")","v":""},{"$f":"IF(V$14<>0,CONCATENATE(K$9,\"-\",$F25),\"\")","v":""},{"$f":"IF(V$15<>0,CONCATENATE(L$9,\"-\",$F25),\"\")","v":""},{"$f":"IF(V$16<>0,CONCATENATE(M$9,\"-\",$F25),\"\")","v":""},{"$f":"IF(V$17<>0,CONCATENATE(N$9,\"-\",$F25),\"\")","v":""},{"$f":"IF(V$18<>0,CONCATENATE(O$9,\"-\",$F25),\"\")","v":""},{"$f":"IF(V$19<>0,CONCATENATE(P$9,\"-\",$F25),\"\")","v":""},{"$f":"IF(V$20<>0,CONCATENATE(Q$9,\"-\",$F25),\"\")","v":""},{"$f":"IF(V$21<>0,CONCATENATE(R$9,\"-\",$F25),\"\")","v":""},{"$f":"IF(V$22<>0,CONCATENATE(S$9,\"-\",$F25),\"\")","v":""},{"$f":"IF(V$23<>0,CONCATENATE(T$9,\"-\",$F25),\"\")","v":""},{"$f":"IF(V$24<>0,CONCATENATE(U$9,\"-\",$F25),\"\")","v":""},null,null,null,null,null,null,null,null,0,"||",0,null,null,null,null,null,null,null,0,0,0,0,null,"||",null,"Select Cable",0,0,0,0,0,0,null,null,null,null,0,"",{"$f":"CONCATENATE(\"(Z) \",$G$27)","v":"(Z) "},0,0,null,17]
[null,null,null,null,null,17,{"$f":"IF(W$10<>0,CONCATENATE(G$9,\"-\",$F26),\"\")","v":""},{"$f":"IF(W$11<>0,CONCATENATE(H$9,\"-\",$F26),\"\")","v":""},{"$f":"IF(W$12<>0,CONCATENATE(I$9,\"-\",$F26),\"\")","v":""},{"$f":"IF(W$13<>0,CONCATENATE(J$9,\"-\",$F26),\"\")","v":""},{"$f":"IF(W$14<>0,CONCATENATE(K$9,\"-\",$F26),\"\")","v":""},{"$f":"IF(W$15<>0,CONCATENATE(L$9,\"-\",$F26),\"\")","v":""},{"$f":"IF(W$16<>0,CONCATENATE(M$9,\"-\",$F26),\"\")","v":""},{"$f":"IF(W$17<>0,CONCATENATE(N$9,\"-\",$F26),\"\")","v":""},{"$f":"IF(W$18<>0,CONCATENATE(O$9,\"-\",$F26),\"\")","v":""},{"$f":"IF(W$19<>0,CONCATENATE(P$9,\"-\",$F26),\"\")","v":""},{"$f":"IF(W$20<>0,CONCATENATE(Q$9,\"-\",$F26),\"\")","v":""},{"$f":"IF(W$21<>0,CONCATENATE(R$9,\"-\",$F26),\"\")","v":""},{"$f":"IF(W$22<>0,CONCATENATE(S$9,\"-\",$F26),\"\")","v":""},{"$f":"IF(W$23<>0,CONCATENATE(T$9,\"-\",$F26),\"\")","v":""},{"$f":"IF(W$24<>0,CONCATENATE(U$9,\"-\",$F26),\"\")","v":""},{"$f":"IF(W$25<>0,CONCATENATE(V$9,\"-\",$F26),\"\")","v":""},null,null,null,null,null,null,null,0,"||",0,null,null,null,null,null,null,null,0,0,0,0,null,"||",null,"Select Cable",0,0,0,0,0,0,null,null,null,null,0,"",{"$f":"CONCATENATE(\"(Z) \",$G$28)","v":"(Z) "},0,0,null,18]
[null,null,null,"pu",null,18,{"$f":"IF(X$10<>0,CONCATENATE(G$9,\"-\",$F27),\"\")","v":""},{"$f":"IF(X$11<>0,CONCATENATE(H$9,\"-\",$F27),\"\")","v":""},{"$f":"IF(X$12<>0,CONCATENATE(I$9,\"-\",$F27),\"\")","v":""},{"$f":"IF(X$13<>0,CONCATENATE(J$9,\"-\",$F27),\"\")","v":""},{"$f":"IF(X$14<>0,CONCATENATE(K$9,\"-\",$F27),\"\")","v":""},{"$f":"IF(X$15<>0,CONCATENATE(L$9,\"-\",$F27),\"\")","v":""},{"$f":"IF(X$16<>0,CONCATENATE(M$9,\"-\",$F27),\"\")","v":""},{"$f":"IF(X$17<>0,CONCATENATE(N$9,\"-\",$F27),\"\")","v":""},{"$f":"IF(X$18<>0,CONCATENATE(O$9,\"-\",$F27),\"\")","v":""},{"$f":"IF(X$19<>0,CONCATENATE(P$9,\"-\",$F27),\"\")","v":""},{"$f":"IF(X$20<>0,CONCATENATE(Q$9,\"-\",$F27),\"\")","v":""},{"$f":"IF(X$21<>0,CONCATENATE(R$9,\"-\",$F27),\"\")","v":""},{"$f":"IF(X$22<>0,CONCATENATE(S$9,\"-\",$F27),\"\")","v":""},{"$f":"IF(X$23<>0,CONCATENATE(T$9,\"-\",$F27),\"\")","v":""},{"$f":"IF(X$24<>0,CONCATENATE(U$9,\"-\",$F27),\"\")","v":""},{"$f":"IF(X$25<>0,CONCATENATE(V$9,\"-\",$F27),\"\")","v":""},{"$f":"IF(X$26<>0,CONCATENATE(W$9,\"-\",$F27),\"\")","v":""},null,null,null,null,null,null,0,"||",0,null,null,null,null,null,null,null,0,0,0,0,null,"||",null,"Select Cable",0,0,0,0,0,0,null,null,null,null,0,"",{"$f":"CONCATENATE(\"(Z) \",$G$29)","v":"(Z) "},0,0,null,19]
[null,null,"Ro =",{"$f":"AP241","v":""},null,19,{"$f":"IF(Y10<>0,CONCATENATE(G$9,\"-\",$F28),\"\")","v":""},{"$f":"IF(Y$11<>0,CONCATENATE(H$9,\"-\",$F28),\"\")","v":""},{"$f":"IF(Y$12<>0,CONCATENATE(I$9,\"-\",$F28),\"\")","v":""},{"$f":"IF(Y$13<>0,CONCATENATE(J$9,\"-\",$F28),\"\")","v":""},{"$f":"IF(Y$14<>0,CONCATENATE(K$9,\"-\",$F28),\"\")","v":""},{"$f":"IF(Y$15<>0,CONCATENATE(L$9,\"-\",$F28),\"\")","v":""},{"$f":"IF(Y$16<>0,CONCATENATE(M$9,\"-\",$F28),\"\")","v":""},{"$f":"IF(Y$17<>0,CONCATENATE(N$9,\"-\",$F28),\"\")","v":""},{"$f":"IF(Y$18<>0,CONCATENATE(O$9,\"-\",$F28),\"\")","v":""},{"$f":"IF(Y$19<>0,CONCATENATE(P$9,\"-\",$F28),\"\")","v":""},{"$f":"IF(Y$20<>0,CONCATENATE(Q$9,\"-\",$F28),\"\")","v":""},{"$f":"IF(Y$21<>0,CONCATENATE(R$9,\"-\",$F28),\"\")","v":""},{"$f":"IF(Y$22<>0,CONCATENATE(S$9,\"-\",$F28),\"\")","v":""},{"$f":"IF(Y$23<>0,CONCATENATE(T$9,\"-\",$F28),\"\")","v":""},{"$f":"IF(Y$24<>0,CONCATENATE(U$9,\"-\",$F28),\"\")","v":""},{"$f":"IF(Y$25<>0,CONCATENATE(V$9,\"-\",$F28),\"\")","v":""},{"$f":"IF(Y$26<>0,CONCATENATE(W$9,\"-\",$F28),\"\")","v":""},{"$f":"IF(Y$27<>0,CONCATENATE(X$9,\"-\",$F28),\"\")","v":""},null,null,null,null,null,0,"||",0,null,null,null,null,null,null,null,0,0,0,0,null,"||",null,"Select Cable",0,0,0,0,0,0,null,null,null,null,0,"",{"$f":"CONCATENATE(\"(Z) \",$G$30)","v":"(Z) "},0,0,null,20]
[null,null,"Xo =",{"$f":"AQ241","v":""},null,20,{"$f":"IF(Z$10<>0,CONCATENATE(G$9,\"-\",$F29),\"\")","v":""},{"$f":"IF(Z$11<>0,CONCATENATE(H$9,\"-\",$F29),\"\")","v":""},{"$f":"IF(Z$12<>0,CONCATENATE(I$9,\"-\",$F29),\"\")","v":""},{"$f":"IF(Z$13<>0,CONCATENATE(J$9,\"-\",$F29),\"\")","v":""},{"$f":"IF(Z$14<>0,CONCATENATE(K$9,\"-\",$F29),\"\")","v":""},{"$f":"IF(Z$15<>0,CONCATENATE(L$9,\"-\",$F29),\"\")","v":""},{"$f":"IF(Z$16<>0,CONCATENATE(M$9,\"-\",$F29),\"\")","v":""},{"$f":"IF(Z$17<>0,CONCATENATE(N$9,\"-\",$F29),\"\")","v":""},{"$f":"IF(Z$18<>0,CONCATENATE(O$9,\"-\",$F29),\"\")","v":""},{"$f":"IF(Z$19<>0,CONCATENATE(P$9,\"-\",$F29),\"\")","v":""},{"$f":"IF(Z$20<>0,CONCATENATE(Q$9,\"-\",$F29),\"\")","v":""},{"$f":"IF(Z$21<>0,CONCATENATE(R$9,\"-\",$F29),\"\")","v":""},{"$f":"IF(Z$22<>0,CONCATENATE(S$9,\"-\",$F29),\"\")","v":""},{"$f":"IF(Z$23<>0,CONCATENATE(T$9,\"-\",$F29),\"\")","v":""},{"$f":"IF(Z$24<>0,CONCATENATE(U$9,\"-\",$F29),\"\")","v":""},{"$f":"IF(Z$25<>0,CONCATENATE(V$9,\"-\",$F29),\"\")","v":""},{"$f":"IF(Z$26<>0,CONCATENATE(W$9,\"-\",$F29),\"\")","v":""},{"$f":"IF(Z$27<>0,CONCATENATE(X$9,\"-\",$F29),\"\")","v":""},{"$f":"IF(Z$28<>0,CONCATENATE(Y$9,\"-\",$F29),\"\")","v":""},null,null,null,null,0,"||",0,null,null,null,null,null,null,null,0,0,0,0,null,"||",null,"Select Cable",0,0,0,0,0,0,null,null,null,null,0,"",{"$f":"CONCATENATE(\"(Z) \",$G$31)","v":"(Z) "},0,0,null,21]
[null,null,"Bo =",{"$f":"AM241","v":0},null,21,{"$f":"IF(AA$10<>0,CONCATENATE(G$9,\"-\",$F30),\"\")","v":""},{"$f":"IF(AA$11<>0,CONCATENATE(H$9,\"-\",$F30),\"\")","v":""},{"$f":"IF(AA$12<>0,CONCATENATE(I$9,\"-\",$F30),\"\")","v":""},{"$f":"IF(AA$13<>0,CONCATENATE(J$9,\"-\",$F30),\"\")","v":""},{"$f":"IF(AA$14<>0,CONCATENATE(K$9,\"-\",$F30),\"\")","v":""},{"$f":"IF(AA$15<>0,CONCATENATE(L$9,\"-\",$F30),\"\")","v":""},{"$f":"IF(AA$16<>0,CONCATENATE(M$9,\"-\",$F30),\"\")","v":""},{"$f":"IF(AA$17<>0,CONCATENATE(N$9,\"-\",$F30),\"\")","v":""},{"$f":"IF(AA$18<>0,CONCATENATE(O$9,\"-\",$F30),\"\")","v":""},{"$f":"IF(AA$19<>0,CONCATENATE(P$9,\"-\",$F30),\"\")","v":""},{"$f":"IF(AA$20<>0,CONCATENATE(Q$9,\"-\",$F30),\"\")","v":""},{"$f":"IF(AA$21<>0,CONCATENATE(R$9,\"-\",$F30),\"\")","v":""},{"$f":"IF(AA$22<>0,CONCATENATE(S$9,\"-\",$F30),\"\")","v":""},{"$f":"IF(AA$23<>0,CONCATENATE(T$9,\"-\",$F30),\"\")","v":""},{"$f":"IF(AA$24<>0,CONCATENATE(U$9,\"-\",$F30),\"\")","v":""},{"$f":"IF(AA$25<>0,CONCATENATE(V$9,\"-\",$F30),\"\")","v":""},{"$f":"IF(AA$26<>0,CONCATENATE(W$9,\"-\",$F30),\"\")","v":""},{"$f":"IF(AA$27<>0,CONCATENATE(X$9,\"-\",$F30),\"\")","v":""},{"$f":"IF(AA$28<>0,CONCATENATE(Y$9,\"-\",$F30),\"\")","v":""},{"$f":"IF(AA$29<>0,CONCATENATE(Z$9,\"-\",$F30),\"\")","v":""},null,null,null,0,"||",0,null,null,null,null,null,null,null,0,0,0,0,null,"||",null,"Select Cable",0,0,0,0,0,0,null,null,null,null,0,"",{"$f":"CONCATENATE(\"(Z) \",$H$12)","v":"(Z) "},0,0,null,22]
[null,null,"Bo/2 =",{"$f":"D30/2","v":0},null,22,{"$f":"IF(AB$10<>0,CONCATENATE(G$9,\"-\",$F31),\"\")","v":""},{"$f":"IF(AB$11<>0,CONCATENATE(H$9,\"-\",$F31),\"\")","v":""},{"$f":"IF(AB$12<>0,CONCATENATE(I$9,\"-\",$F31),\"\")","v":""},{"$f":"IF(AB$13<>0,CONCATENATE(J$9,\"-\",$F31),\"\")","v":""},{"$f":"IF(AB$14<>0,CONCATENATE(K$9,\"-\",$F31),\"\")","v":""},{"$f":"IF(AB$15<>0,CONCATENATE(L$9,\"-\",$F31),\"\")","v":""},{"$f":"IF(AB$16<>0,CONCATENATE(M$9,\"-\",$F31),\"\")","v":""},{"$f":"IF(AB$17<>0,CONCATENATE(N$9,\"-\",$F31),\"\")","v":""},{"$f":"IF(AB$18<>0,CONCATENATE(O$9,\"-\",$F31),\"\")","v":""},{"$f":"IF(AB$19<>0,CONCATENATE(P$9,\"-\",$F31),\"\")","v":""},{"$f":"IF(AB$20<>0,CONCATENATE(Q$9,\"-\",$F31),\"\")","v":""},{"$f":"IF(AB$21<>0,CONCATENATE(R$9,\"-\",$F31),\"\")","v":""},{"$f":"IF(AB$22<>0,CONCATENATE(S$9,\"-\",$F31),\"\")","v":""},{"$f":"IF(AB$23<>0,CONCATENATE(T$9,\"-\",$F31),\"\")","v":""},{"$f":"IF(AB$24<>0,CONCATENATE(U$9,\"-\",$F31),\"\")","v":""},{"$f":"IF(AB$25<>0,CONCATENATE(V$9,\"-\",$F31),\"\")","v":""},{"$f":"IF(AB$26<>0,CONCATENATE(W$9,\"-\",$F31),\"\")","v":""},{"$f":"IF(AB$27<>0,CONCATENATE(X$9,\"-\",$F31),\"\")","v":""},{"$f":"IF(AB$28<>0,CONCATENATE(Y$9,\"-\",$F31),\"\")","v":""},"",{"$f":"IF(AB$30<>0,CONCATENATE(AA$9,\"-\",$F31),\"\")","v":""},null,null,0,"||",0,null,null,null,null,null,null,null,0,0,0,0,null,"||",null,"Select Cable",0,0,0,0,0,0,null,null,null,null,0,"",{"$f":"CONCATENATE(\"(Z) \",$H$13)","v":"(Z) "},0,0,null,23]
[null,null,null,null,null,null,null,null,null,null,null,null,null,null,null,null,null,null,null,null,null,null,null,null,null,null,null,null,null,0,"||",0,null,null,null,null,null,null,null,0,0,0,0,null,"||",null,"Select Cable",0,0,0,0,0,0,null,null,null,null,0,"",{"$f":"CONCATENATE(\"(Z) \",$H$14)","v":"(Z) "},0,0,null,24]
[null,null,null,null,null,null,null,null,null,null,null,null,null,null,null,null,null,null,null,null,null,null,null,null,null,null,null,null,null,0,"||",0,null,null,null,null,null,null,null,0,0,0,0,null,"||",null,"Select Cable",0,0,0,0,0,0,null,null,null,null,0,"",{"$f":"CONCATENATE(\"(Z) \",$H$15)","v":"(Z) "},0,0,null,25]
[null,null,null,null,null,null,null,null,null,null,null,null,null,null,null,null,null,null,null,null,null,null,null,null,null,null,null,null,null,0,"||",0,null,null,null,null,null,null,null,0,0,0,0,null,"||",null,"Select Cable",0,0,0,0,0,0,null,null,null,null,0,"",{"$f":"CONCATENATE(\"(Z) \",$H$16)","v":"(Z) "},0,0,null,26]
[null,null,null,null,null,null,null,null,null,null,null,null,null,null,null,null,null,null,null,null,null,null,null,null,null,null,null,null,null,0,"||",0,null,null,null,null,null,null,null,0,0,0,0,null,"||",null,"Select Cable",0,0,0,0,0,0,null,null,null,null,0,"",{"$f":"CONCATENATE(\"(Z) \",$H$17)","v":"(Z) "},0,0,null,27]
[null,null,null,null,null,null,null,null,null,null,null,null,null,null,null,null,null,null,null,null,null,null,null,null,null,null,null,null,null,0,"||",0,null,null,null,null,null,null,null,0,0,0,0,null,"||",null,"Select Cable",0,0,0,0,0,0,null,null,null,null,0,"",{"$f":"CONCATENATE(\"(Z) \",$H$18)","v":"(Z) "},0,0,null,28]
[null,null,null,null,null,null,null,null,null,null,null,null,null,null,null,null,null,null,null,null,null,null,null,null,null,null,null,null,null,0,"||",0,null,null,null,null,null,null,null,0,0,0,0,null,"||",null,"Select Cable",0,0,0,0,0,0,null,null,null,null,0,"",{"$f":"CONCATENATE(\"(Z) \",$H$19)","v":"(Z) "},0,0,null,29]
[null,null,null,null,null,null,null,null,null,null,null,null,null,null,null,null,null,null,null,null,null,null,null,null,null,null,null,null,null,0,"||",0,null,null,null,null,null,null,null,0,0,0,0,null,"||",null,"Select Cable",0,0,0,0,0,0,null,null,null,null,0,"",{"$f":"CONCATENATE(\"(Z) \",$H$20)","v":"(Z) "},0,0,null,30]
[null,null,null,null,null,null,null,null,null,null,null,null,null,null,null,null,null,null,null,null,null,null,null,null,null,null,null,null,null,0,"||",0,null,null,null,null,null,null,null,0,0,0,0,null,"||",null,"Select Cable",0,0,0,0,0,0,null,null,null,null,0,"",{"$f":"CONCATENATE(\"(Z) \",$H$21)","v":"(Z) "},0,0,null,31]
[null,null,null,null,null,null,null,null,null,null,null,null,null,null,null,null,null,null,null,null,null,null,null,null,null,null,null,null,null,0,"||",0,null,null,null,null,null,null,null,0,0,0,0,null,"||",null,"Select Cable",0,0,0,0,0,0,null,null,null,null,0,"",{"$f":"CONCATENATE(\"(Z) \",$H$22)","v":"(Z) "},0,0,null,32]
[null,null,null,null,null,null,null,null,null,null,null,null,null,null,null,null,null,null,null,null,null,null,null,null,null,null,null,null,null,0,"||",0,null,null,null,null,null,null,null,0,0,0,0,null,"||",null,"Select Cable",0,0,0,0,0,0,null,null,null,null,0,"",{"$f":"CONCATENATE(\"(Z) \",$H$23)","v":"(Z) "},0,0,null,33]
[null,null,null,null,null,null,null,null,null,null,null,null,null,null,null,null,null,null,null,null,null,null,null,null,null,null,null,null,null,0,"||",0,null,null,null,null,null,null,null,0,0,0,0,null,"||",null,"Select Cable",0,0,0,0,0,0,null,null,null,null,0,"",{"$f":"CONCATENATE(\"(Z) \",$H$24)","v":"(Z) "},0,0,null,34]
[null,null,null,null,null,null,null,null,null,null,null,null,null,null,null,null,null,null,null,null,null,null,null,null,null,null,null,null,null,0,"||",0,null,null,null,null,null,null,null,0,0,0,0,null,"||",null,"Select Cable",0,0,0,0,0,0,null,null,null,null,0,"",{"$f":"CONCATENATE(\"(Z) \",$H$25)","v":"(Z) "},0,0,null,35]
[null,null,null,null,null,null,null,null,null,null,null,null,null,null,null,null,null,null,null,null,null,null,null,null,null,null,null,null,null,0,"||",0,null,null,null,null,null,null,null,0,0,0,0,null,"||",null,"Select Cable",0,0,0,0,0,0,null,null,null,null,0,"",{"$f":"CONCATENATE(\"(Z) \",$H$26)","v":"(Z) "},0,0,null,36]
[null,null,null,null,null,null,null,null,null,null,null,null,null,null,null,null,null,null,null,null,null,null,null,null,null,null,null,null,null,0,"||",0,null,null,null,null,null,null,null,0,0,0,0,null,"||",null,"Select Cable",0,0,0,0,0,0,{"$f":"IF(AND(AS9<>\"||\",OR(AV9=0,AW9=0,AY9=0,AZ9=0)),\" !\",0)","v":0},null,null,null,0,"",{"$f":"CONCATENATE(\"(Z) \",$H$27)","v":"(Z) "},0,0,null,37]
[null,null,null,null,null,null,null,null,null,null,null,null,null,null,null,null,null,null,null,null,null,null,null,null,null,null,null,null,null,0,"||",0,null,null,null,null,null,null,null,0,0,0,0,null,"||",null,"Select Cable",0,0,0,0,0,0,0,null,null,null,0,"",{"$f":"CONCATENATE(\"(Z) \",$H$28)","v":"(Z) "},0,0,null,38]
[null,null,null,null,null,null,null,null,null,null,null,null,null,null,null,null,null,null,null,null,null,null,null,null,null,null,null,null,null,0,"||",0,null,null,null,null,null,null,null,0,0,0,0,null,"||",null,"Select Cable",0,0,0,0,0,0,0,null,null,null,0,"",{"$f":"CONCATENATE(\"(Z) \",$H$29)","v":"(Z) "},0,0,null,39]
[null,null,null,null,null,null,null,null,null,null,null,null,null,null,null,null,null,null,null,null,null,null,null,null,null,null,null,null,null,0,"||",0,null,null,null,null,null,null,null,0,0,0,0,null,"||",null,"Select Cable",0,0,0,0,0,0,0,null,null,null,0,"",{"$f":"CONCATENATE(\"(Z) \",$H$30)","v":"(Z) "},0,0,null,40]
[null,null,null,null,null,null,null,null,null,null,null,null,null,null,null,null,null,null,null,null,null,null,null,null,null,null,null,null,null,0,"||",0,null,null,null,null,null,null,null,0,0,0,0,null,"||",null,"Select Cable",0,0,0,0,0,0,0,null,null,null,0,"",{"$f":"CONCATENATE(\"(Z) \",$H$31)","v":"(Z) "},0,0,null,41]
[null,null,null,null,null,null,null,null,null,null,null,null,null,null,null,null,null,null,null,null,null,null,null,null,null,null,null,null,null,0,"||",0,null,null,null,null,null,null,null,0,0,0,0,null,"||",null,"Select Cable",0,0,0,0,0,0,0,null,null,null,0,"",{"$f":"CONCATENATE(\"(Z) \",$I$13)","v":"(Z) "},0,0,null,42]
[null,null,null,null,null,null,null,null,null,null,null,null,null,null,null,null,null,null,null,null,null,null,null,null,null,null,null,null,null,0,"||",0,null,null,null,null,null,null,null,0,0,0,0,null,"||",null,"Select Cable",0,0,0,0,0,0,0,null,null,null,0,"",{"$f":"CONCATENATE(\"(Z) \",$I$14)","v":"(Z) "},0,0,null,43]
[null,null,null,null,null,null,null,null,null,null,null,null,null,null,null,null,null,null,null,null,null,null,null,null,null,null,null,null,null,0,"||",0,null,null,null,null,null,null,null,0,0,0,0,null,"||",null,"Select Cable",0,0,0,0,0,0,0,null,null,null,0,"",{"$f":"CONCATENATE(\"(Z) \",$I$15)","v":"(Z) "},0,0,null,44]
[null,null,null,null,null,null,null,null,null,null,null,null,null,null,null,null,null,null,null,null,null,null,null,null,null,null,null,null,null,0,"||",0,null,null,null,null,null,null,null,0,0,0,0,null,"||",null,"Select Cable",0,0,0,0,0,0,0,null,null,null,0,"",{"$f":"CONCATENATE(\"(Z) \",$I$16)","v":"(Z) "},0,0,null,45]
[null,null,null,null,null,null,null,null,null,null,null,null,null,null,null,null,null,null,null,null,null,null,null,null,null,null,null,null,null,0,"||",0,null,null,null,null,null,null,null,0,0,0,0,null,"||",null,"Select Cable",0,0,0,0,0,0,0,null,null,null,0,"",{"$f":"CONCATENATE(\"(Z) \",$I$17)","v":"(Z) "},0,0,null,46]
[null,null,null,null,null,null,null,null,null,null,null,null,null,null,null,null,null,null,null,null,null,null,null,null,null,null,null,null,null,0,"||",0,null,null,null,null,null,null,null,0,0,0,0,null,"||",null,"Select Cable",0,0,0,0,0,0,0,null,null,null,0,"",{"$f":"CONCATENATE(\"(Z) \",$I$18)","v":"(Z) "},0,0,null,47]
[null,null,null,null,null,null,null,null,null,null,null,null,null,null,null,null,null,null,null,null,null,null,null,null,null,null,null,null,null,0,"||",0,null,null,null,null,null,null,null,0,0,0,0,null,"||",null,"Select Cable",0,0,0,0,0,0,0,null,null,null,0,"",{"$f":"CONCATENATE(\"(Z) \",$I$19)","v":"(Z) "},0,0,null,48]
[null,null,null,null,null,null,null,null,null,null,null,null,null,null,null,null,null,null,null,null,null,null,null,null,null,null,null,null,null,0,"||",0,null,null,null,null,null,null,null,0,0,0,0,null,"||",null,"Select Cable",0,0,0,0,0,0,0,null,null,null,0,"",{"$f":"CONCATENATE(\"(Z) \",$I$20)","v":"(Z) "},0,0,null,49]
[null,null,null,null,null,null,null,null,null,null,null,null,null,null,null,null,null,null,null,null,null,null,null,null,null,null,null,null,null,0,"||",0,null,null,null,null,null,null,null,0,0,0,0,null,"||",null,"Select Cable",0,0,0,0,0,0,0,null,null,null,0,"",{"$f":"CONCATENATE(\"(Z) \",$I$21)","v":"(Z) "},0,0,null,50]
[null,null,null,null,null,null,null,null,null,null,null,null,null,null,null,null,null,null,null,null,null,null,null,null,null,null,null,null,null,0,"||",0,null,null,null,null,null,null,null,0,0,0,0,null,"||",null,"Select Cable",0,0,0,0,0,0,0,null,null,null,0,"",{"$f":"CONCATENATE(\"(Z) \",$I$22)","v":"(Z) "},0,0,null,51]
[null,null,null,null,null,null,null,null,null,null,null,null,null,null,null,null,null,null,null,null,null,null,null,null,null,null,null,null,null,0,"||",0,null,null,null,null,null,null,null,0,0,0,0,null,"||",null,"Select Cable",0,0,0,0,0,0,0,null,null,null,0,"",{"$f":"CONCATENATE(\"(Z) \",$I$23)","v":"(Z) "},0,0,null,52]
[null,null,null,null,null,null,null,null,null,null,null,null,null,null,null,null,null,null,null,null,null,null,null,null,null,null,null,null,null,0,"||",0,null,null,null,null,null,null,null,0,0,0,0,null,"||",null,"Select Cable",0,0,0,0,0,0,0,null,null,null,0,"",{"$f":"CONCATENATE(\"(Z) \",$I$24)","v":"(Z) "},0,0,null,53]
[null,null,null,null,null,null,null,null,null,null,null,null,null,null,null,null,null,null,null,null,null,null,null,null,null,null,null,null,null,0,"||",0,null,null,null,null,null,null,null,0,0,0,0,null,"||",null,"Select Cable",0,0,0,0,0,0,0,null,null,null,0,"",{"$f":"CONCATENATE(\"(Z) \",$I$25)","v":"(Z) "},0,0,null,54]
[null,null,null,null,null,null,null,null,null,null,null,null,null,null,null,null,null,null,null,null,null,null,null,null,null,null,null,null,null,0,"||",0,null,null,null,null,null,null,null,0,0,0,0,null,"||",null,"Select Cable",0,0,0,0,0,0,0,null,null,null,0,"",{"$f":"CONCATENATE(\"(Z) \",$I$26)","v":"(Z) "},0,0,null,55]
[null,null,null,null,null,null,null,null,null,null,null,null,null,null,null,null,null,null,null,null,null,null,null,null,null,null,null,null,null,0,"||",0,null,null,null,null,null,null,null,0,0,0,0,null,"||",null,"Select Cable",0,0,0,0,0,0,0,null,null,null,0,"",{"$f":"CONCATENATE(\"(Z) \",$I$27)","v":"(Z) "},0,0,null,56]
[null,null,null,null,null,null,null,null,null,null,null,null,null,null,null,null,null,null,null,null,null,null,null,null,null,null,null,null,null,0,"||",0,null,null,null,null,null,null,null,0,0,0,0,null,"||",null,"Select Cable",0,0,0,0,0,0,0,null,null,null,0,"",{"$f":"CONCATENATE(\"(Z) \",$I$28)","v":"(Z) "},0,0,null,57]
[null,null,null,null,null,null,null,null,null,null,null,null,null,null,null,null,null,null,null,null,null,null,null,null,null,null,null,null,null,0,"||",0,null,null,null,null,null,null,null,0,0,0,0,null,"||",null,"Select Cable",0,0,0,0,0,0,0,null,null,null,0,"",{"$f":"CONCATENATE(\"(Z) \",$I$29)","v":"(Z) "},0,0,null,58]
[null,null,null,null,null,null,null,null,null,null,null,null,null,null,null,null,null,null,null,null,null,null,null,null,null,null,null,null,null,0,"||",0,null,null,null,null,null,null,null,0,0,0,0,null,"||",null,"Select Cable",0,0,0,0,0,0,0,null,null,null,0,"",{"$f":"CONCATENATE(\"(Z) \",$I$30)","v":"(Z) "},0,0,null,59]
[null,null,null,null,null,null,null,null,null,null,null,null,null,null,null,null,null,null,null,null,null,null,null,null,null,null,null,null,null,0,"||",0,null,null,null,null,null,null,null,0,0,0,0,null,"||",null,"Select Cable",0,0,0,0,0,0,0,null,null,null,0,"",{"$f":"CONCATENATE(\"(Z) \",$I$31)","v":"(Z) "},0,0,null,60]
[null,null,null,null,null,null,null,null,null,null,null,null,null,null,null,null,null,null,null,null,null,null,null,null,null,null,null,null,null,0,"||",0,null,null,null,null,null,null,null,0,0,0,0,null,"||",null,"Select Cable",0,0,0,0,0,0,0,null,null,null,0,"",{"$f":"CONCATENATE(\"(Z) \",$J$14)","v":"(Z) "},0,0,null,61]
[null,null,null,null,null,null,null,null,null,null,null,null,null,null,null,null,null,null,null,null,null,null,null,null,null,null,null,null,null,0,"||",0,null,null,null,null,null,null,null,0,0,0,0,null,"||",null,"Select Cable",0,0,0,0,0,0,0,null,null,null,0,"",{"$f":"CONCATENATE(\"(Z) \",$J$15)","v":"(Z) "},0,0,null,62]
[null,null,null,null,null,null,null,null,null,null,null,null,null,null,null,null,null,null,null,null,null,null,null,null,null,null,null,null,null,0,"||",0,null,null,null,null,null,null,null,0,0,0,0,null,"||",null,"Select Cable",0,0,0,0,0,0,0,null,null,null,0,"",{"$f":"CONCATENATE(\"(Z) \",$J$16)","v":"(Z) "},0,0,null,63]
[null,null,null,null,null,null,null,null,null,null,null,null,null,null,null,null,null,null,null,null,null,null,null,null,null,null,null,null,null,0,"||",0,null,null,null,null,null,null,null,0,0,0,0,null,"||",null,"Select Cable",0,0,0,0,0,0,0,null,null,null,0,"",{"$f":"CONCATENATE(\"(Z) \",$J$17)","v":"(Z) "},0,0,null,64]
[null,null,null,null,null,null,null,null,null,null,null,null,null,null,null,null,null,null,null,null,null,null,null,null,null,null,null,null,null,0,"||",0,null,null,null,null,null,null,null,0,0,0,0,null,{"$f":"AE73","v":"||"},null,"Select Cable",{"$f":"VLOOKUP($AU73,$BN$8:$BV$37,2,0)*($AT73/1000)*(100/$AY$6^2)","v":0},{"$f":"VLOOKUP($AU73,$BN$8:$BV$37,3,0)*($AT73/1000)*(100/$AY$6^2)","v":0},{"$f":"VLOOKUP($AU73,$BN$8:$BV$37,4,0)*(120*PI()*0.000001)*($AY$6^2/100)*($AT73/1000)","v":0},{"$f":"VLOOKUP($AU73,$BN$8:$BV$37,5,0)*($AT73/1000)*(100/$AY$6^2)","v":0},{"$f":"VLOOKUP($AU73,$BN$8:$BV$37,6,0)*($AT73/1000)*(100/$AY$6^2)","v":0},{"$f":"VLOOKUP($AU73,$BN$8:$BV$37,7,0)*(120*PI()*0.000001)*($AY$6^2/100)*($AT73/1000)","v":0},0,null,null,null,0,"",{"$f":"CONCATENATE(\"(Z) \",$J$18)","v":"(Z) "},0,0,null,65]
[null,null,null,null,null,null,null,null,null,null,null,null,null,null,null,null,null,null,null,null,null,null,null,null,null,null,null,null,null,{"$f":"IF(ISNA(VLOOKUP($BL74,$BF$9:$BH$239,2,0)),0,VLOOKUP($BL74,$BF$9:$BH$239,2,0))","v":0},{"$f":"IF(ISNA(VLOOKUP($BL74,$BF$9:$BH$239,3,0)),\"||\",VLOOKUP($BL74,$BF$9:$BH$239,3,0))","v":"||"},{"$f":"IF(AND(AE74<>\"||\",OR(AG74=0,AH74=0,AI74=0,AK74=0,AL74=0)),\"!\",0)","v":0},null,null,null,null,null,null,null,{"$f":"$AH74*$AG74^2","v":0},{"$f":"$AI74*$AG74^2","v":0},{"$f":"$AK74*$AG74^2","v":0},{"$f":"$AL74*$AG74^2","v":0},null,"||",null,"Select Cable",0,0,0,0,0,0,0,null,null,null,0,"",{"$f":"CONCATENATE(\"(Z) \",$J$19)","v":"(Z) "},0,0,null,66]
[null,null,null,null,null,null,null,null,null,null,null,null,null,null,null,null,null,null,null,null,null,null,null,null,null,null,null,null,null,0,"||",0,null,null,null,null,null,null,null,0,0,0,0,null,"||",null,"Select Cable",0,0,0,0,0,0,0,null,null,null,0,{"$f":"IF(BH75<>\"(Z) \",\"Input  -->\",\"\")","v":""},{"$f":"CONCATENATE(\"(Z) \",$J$20)","v":"(Z) "},0,{"$f":"IF(BI75=1,BJ74+1,BJ74)","v":0},null,67]
[null,null,null,null,null,null,null,null,null,null,null,null,null,null,null,null,null,null,null,null,null,null,null,null,null,null,null,null,null,0,"||",0,null,null,null,null,null,null,null,0,0,0,0,null,"||",null,"Select Cable",0,0,0,0,0,0,0,null,null,null,0,"",{"$f":"CONCATENATE(\"(Z) \",$J$21)","v":"(Z) "},0,0,null,68]
[null,null,null,null,null,null,null,null,null,null,null,null,null,null,null,null,null,null,null,null,null,null,null,null,null,null,null,null,null,0,"||",0,null,null,null,null,null,null,null,0,0,0,0,null,"||",null,"Select Cable",0,0,0,0,0,0,0,null,null,null,{"$f":"IF(BJ77>BJ76,BJ77,0)","v":0},"",{"$f":"CONCATENATE(\"(Z) \",$J$22)","v":"(Z) "},0,0,null,69]
[null,null,null,null,null,null,null,null,null,null,null,null,null,null,null,null,null,null,null,null,null,null,null,null,null,null,null,null,null,0,"||",0,null,null,null,null,null,null,null,0,0,0,0,null,"||",null,"Select Cable",0,0,0,0,0,0,0,null,null,null,0,"",{"$f":"CONCATENATE(\"(Z) \",$J$23)","v":"(Z) "},{"$f":"IF(BH78=\"(Z) \", 0,1)","v":0},0,null,70]
[null,null,null,null,null,null,null,null,null,null,null,null,null,null,null,null,null,null,null,null,null,null,null,null,null,null,null,null,null,0,"||",0,null,null,null,null,null,null,null,0,0,0,0,null,"||",null,"Select Cable",0,0,0,0,0,0,0,null,null,null,0,"",{"$f":"CONCATENATE(\"(Z) \",$J$24)","v":"(Z) "},0,0,null,71]
[null,null,null,null,null,null,null,null,null,null,null,null,null,null,null,null,null,null,null,null,null,null,null,null,null,null,null,null,null,0,"||",0,null,null,null,null,null,null,null,0,0,0,0,null,"||",null,"Select Cable",0,0,0,0,0,0,0,null,null,null,0,"",{"$f":"CONCATENATE(\"(Z) \",$J$25)","v":"(Z) "},0,0,null,72]
[null,null,null,null,null,null,null,null,null,null,null,null,null,null,null,null,null,null,null,null,null,null,null,"If you would like to Equivalence Multiple Feeders into a Single Feeder… Go Here -->  ",null,null,null,null,null,0,"||",0,null,null,null,null,null,null,null,0,0,0,0,null,"||",null,"Select Cable",0,0,0,0,0,0,0,null,null,null,0,"",{"$f":"CONCATENATE(\"(Z) \",$J$26)","v":"(Z) "},0,0,null,73]
[null,null,null,null,null,null,null,null,null,null,null,null,null,null,null,null,null,null,null,null,null,null,null,null,null,null,null,null,null,0,"||",0,null,null,null,null,null,null,null,0,0,0,0,null,"||",null,"Select Cable",0,0,0,0,0,0,0,null,null,null,0,"",{"$f":"CONCATENATE(\"(Z) \",$J$27)","v":"(Z) "},0,0,null,74]
[null,null,null,null,null,null,null,null,null,null,null,null,null,null,null,null,null,null,null,null,null,null,null,null,null,null,null,null,null,0,"||",0,null,null,null,null,null,null,null,0,0,0,0,null,"||",null,"Select Cable",0,0,0,0,0,0,0,null,null,null,0,"",{"$f":"CONCATENATE(\"(Z) \",$J$28)","v":"(Z) "},0,0,null,75]
[null,null,null,null,null,null,null,null,null,null,null,null,null,null,null,null,null,null,null,null,null,null,null,null,null,null,null,null,null,0,"||",0,null,null,null,null,null,null,null,0,0,0,0,null,"||",null,"Select Cable",0,0,0,0,0,0,0,null,null,null,0,"",{"$f":"CONCATENATE(\"(Z) \",$J$29)","v":"(Z) "},0,0,null,76]
[null,null,null,null,null,null,null,null,null,null,null,null,null,null,null,null,null,null,null,null,null,null,null,null,null,null,null,null,null,0,"||",0,null,null,null,null,null,null,null,0,0,0,0,null,"||",null,"Select Cable",0,0,0,0,0,0,0,null,null,null,0,"",{"$f":"CONCATENATE(\"(Z) \",$J$30)","v":"(Z) "},0,0,null,77]
[null,null,null,null,null,null,null,null,null,null,null,null,null,null,null,null,null,null,null,null,null,null,null,null,null,null,null,null,null,0,"||",0,null,null,null,null,null,null,null,0,0,0,0,null,"||",null,"Select Cable",0,0,0,0,0,0,0,null,null,null,0,"",{"$f":"CONCATENATE(\"(Z) \",$J$31)","v":"(Z) "},0,0,null,78]
[null,null,null,null,null,null,null,null,null,null,null,null,null,null,null,null,null,null,null,null,null,null,null,null,null,null,null,null,null,0,"||",0,null,null,null,null,null,null,null,0,0,0,0,null,"||",null,"Select Cable",0,0,0,0,0,0,0,null,null,null,0,"",{"$f":"CONCATENATE(\"(Z) \",$K$15)","v":"(Z) "},0,0,null,79]
[null,null,null,null,null,null,null,null,null,null,null,null,null,null,null,null,null,null,null,null,null,null,null,null,null,null,null,null,null,0,"||",0,null,null,null,null,null,null,null,0,0,0,0,null,"||",null,"Select Cable",0,0,0,0,0,0,0,null,null,null,0,"",{"$f":"CONCATENATE(\"(Z) \",$K$16)","v":"(Z) "},0,0,null,80]
[null,null,null,null,null,null,null,null,null,null,null,null,null,null,null,null,null,null,null,null,null,null,null,null,null,null,null,null,null,0,"||",0,null,null,null,null,null,null,null,0,0,0,0,null,"||",null,"Select Cable",0,0,0,0,0,0,0,null,null,null,0,"",{"$f":"CONCATENATE(\"(Z) \",$K$17)","v":"(Z) "},0,0,null,81]
[null,null,null,null,null,null,null,null,null,null,null,null,null,null,null,null,null,null,null,null,null,null,null,null,null,null,null,null,null,0,"||",0,null,null,null,null,null,null,null,0,0,0,0,null,"||",null,"Select Cable",0,0,0,0,0,0,0,null,null,null,0,"",{"$f":"CONCATENATE(\"(Z) \",$K$18)","v":"(Z) "},0,0,null,82]
[null,null,null,null,null,null,null,null,null,null,null,null,null,null,null,null,null,null,null,null,null,null,null,null,null,null,null,null,null,0,"||",0,null,null,null,null,null,null,null,0,0,0,0,null,"||",null,"Select Cable",0,0,0,0,0,0,0,null,null,null,0,"",{"$f":"CONCATENATE(\"(Z) \",$K$19)","v":"(Z) "},0,0,null,83]
[null,null,null,null,null,null,null,null,null,null,null,null,null,null,null,null,null,null,null,null,null,null,null,null,null,null,null,null,null,0,"||",0,null,null,null,null,null,null,null,0,0,0,0,null,"||",null,"Select Cable",0,0,0,0,0,0,0,null,null,null,0,"",{"$f":"CONCATENATE(\"(Z) \",$K$20)","v":"(Z) "},0,0,null,84]
[null,null,null,null,null,null,null,null,null,null,null,null,null,null,null,null,null,null,null,null,null,null,null,null,null,null,null,null,null,0,"||",0,null,null,null,null,null,null,null,0,0,0,0,null,"||",null,"Select Cable",0,0,0,0,0,0,0,null,null,null,0,"",{"$f":"CONCATENATE(\"(Z) \",$K$21)","v":"(Z) "},0,0,null,85]
[null,null,null,null,null,null,null,null,null,null,null,null,null,null,null,null,null,null,null,null,null,null,null,null,null,null,null,null,null,0,"||",0,null,null,null,null,null,null,null,0,0,0,0,null,"||",null,"Select Cable",0,0,0,0,0,0,0,null,null,null,0,"",{"$f":"CONCATENATE(\"(Z) \",$K$22)","v":"(Z) "},0,0,null,86]
[null,null,null,null,null,null,null,null,null,null,null,null,null,null,null,null,null,null,null,null,null,null,null,null,null,null,null,null,null,0,"||",0,null,null,null,null,null,null,null,0,0,0,0,null,"||",null,"Select Cable",0,0,0,0,0,0,0,null,null,null,0,"",{"$f":"CONCATENATE(\"(Z) \",$K$23)","v":"(Z) "},0,0,null,87]
[null,null,null,null,null,null,null,null,null,null,null,null,null,null,null,null,null,null,null,null,null,null,null,null,null,null,null,null,null,0,"||",0,null,null,null,null,null,null,null,0,0,0,0,null,"||",null,"Select Cable",0,0,0,0,0,0,0,null,null,null,0,"",{"$f":"CONCATENATE(\"(Z) \",$K$24)","v":"(Z) "},0,0,null,88]
[null,null,null,null,null,null,null,null,null,null,null,null,null,null,null,null,null,null,null,null,null,null,null,null,null,null,null,null,null,0,"||",0,null,null,null,null,null,null,null,0,0,0,0,null,"||",null,"Select Cable",0,0,0,0,0,0,0,null,null,null,0,"",{"$f":"CONCATENATE(\"(Z) \",$K$25)","v":"(Z) "},0,0,null,89]
[null,null,null,null,null,null,null,null,null,null,null,null,null,null,null,null,null,null,null,null,null,null,null,null,null,null,null,null,null,0,"||",0,null,null,null,null,null,null,null,0,0,0,0,null,"||",null,"Select Cable",0,0,0,0,0,0,0,null,null,null,0,"",{"$f":"CONCATENATE(\"(Z) \",$K$26)","v":"(Z) "},0,0,null,90]
[null,null,null,null,null,null,null,null,null,null,null,null,null,null,null,null,null,null,null,null,null,null,null,null,null,null,null,null,null,0,"||",0,null,null,null,null,null,null,null,0,0,0,0,null,"||",null,"Select Cable",0,0,0,0,0,0,0,null,null,null,0,"",{"$f":"CONCATENATE(\"(Z) \",$K$27)","v":"(Z) "},0,0,null,91]
[null,null,null,null,null,null,null,null,null,null,null,null,null,null,null,null,null,null,null,null,null,null,null,null,null,null,null,null,null,0,"||",0,null,null,null,null,null,null,null,0,0,0,0,null,"||",null,"Select Cable",0,0,0,0,0,0,0,null,null,null,0,"",{"$f":"CONCATENATE(\"(Z) \",$K$28)","v":"(Z) "},0,0,null,92]
[null,null,null,null,null,null,null,null,null,null,null,null,null,null,null,null,null,null,null,null,null,null,null,null,null,null,null,null,null,0,"||",0,null,null,null,null,null,null,null,0,0,0,0,null,"||",null,"Select Cable",0,0,0,0,0,0,0,null,null,null,0,"",{"$f":"CONCATENATE(\"(Z) \",$K$29)","v":"(Z) "},0,0,null,93]
[null,null,null,null,null,null,null,null,null,null,null,null,null,null,null,null,null,null,null,null,null,null,null,null,null,null,null,null,null,0,"||",0,null,null,null,null,null,null,null,0,0,0,0,null,"||",null,"Select Cable",0,0,0,0,0,0,0,null,null,null,0,"",{"$f":"CONCATENATE(\"(Z) \",$K$30)","v":"(Z) "},0,0,null,94]
[null,null,null,null,null,null,null,null,null,null,null,null,null,null,null,null,null,null,null,null,null,null,null,null,null,null,null,null,null,0,"||",0,null,null,null,null,null,null,null,0,0,0,0,null,"||",null,"Select Cable",0,0,0,0,0,0,0,null,null,null,0,"",{"$f":"CONCATENATE(\"(Z) \",$K$31)","v":"(Z) "},0,0,null,95]
[null,null,null,null,null,null,null,null,null,null,null,null,null,null,null,null,null,null,null,null,null,null,null,null,null,null,null,null,null,0,"||",0,null,null,null,null,null,null,null,0,0,0,0,null,"||",null,"Select Cable",0,0,0,0,0,0,0,null,null,null,0,"",{"$f":"CONCATENATE(\"(Z) \",$L$16)","v":"(Z) "},0,0,null,96]
[null,null,null,null,null,null,null,null,null,null,null,null,null,null,null,null,null,null,null,null,null,null,null,null,null,null,null,null,null,0,"||",0,null,null,null,null,null,null,null,0,0,0,0,null,"||",null,"Select Cable",0,0,0,0,0,0,0,null,null,null,0,"",{"$f":"CONCATENATE(\"(Z) \",$L$17)","v":"(Z) "},0,0,null,97]
[null,null,null,null,null,null,null,null,null,null,null,null,null,null,null,null,null,null,null,null,null,null,null,null,null,null,null,null,null,0,"||",0,null,null,null,null,null,null,null,0,0,0,0,null,"||",null,"Select Cable",0,0,0,0,0,0,0,null,null,null,0,"",{"$f":"CONCATENATE(\"(Z) \",$L$18)","v":"(Z) "},0,0,null,98]
[null,null,null,null,null,null,null,null,null,null,null,null,null,null,null,null,null,null,null,null,null,null,null,null,null,null,null,null,null,0,"||",0,null,null,null,null,null,null,null,0,0,0,0,null,"||",null,"Select Cable",0,0,0,0,0,0,0,null,null,null,0,"",{"$f":"CONCATENATE(\"(Z) \",$L$19)","v":"(Z) "},0,0,null,99]
[null,null,null,null,null,null,null,null,null,null,null,null,null,null,null,null,null,null,null,null,null,null,null,null,null,null,null,null,null,0,"||",0,null,null,null,null,null,null,null,0,0,0,0,null,"||",null,"Select Cable",0,0,0,0,0,0,0,null,null,null,0,"",{"$f":"CONCATENATE(\"(Z) \",$L$20)","v":"(Z) "},0,0,null,100]
[null,null,null,null,null,null,null,null,null,null,null,null,null,null,null,null,null,null,null,null,null,null,null,null,null,null,null,null,null,0,"||",0,null,null,null,null,null,null,null,0,0,0,0,null,"||",null,"Select Cable",0,0,0,0,0,0,{"$f":"IF(AND(AS73<>\"||\",OR(AV73=0,AW73=0,AY73=0,AZ73=0)),\" !\",0)","v":0},null,null,null,0,"",{"$f":"CONCATENATE(\"(Z) \",$L$21)","v":"(Z) "},0,0,null,101]
[null,null,null,null,null,null,null,null,null,null,null,null,null,null,null,null,null,null,null,null,null,null,null,null,null,null,null,null,null,0,"||",0,null,null,null,null,null,null,null,0,0,0,0,null,"||",null,"Select Cable",0,0,0,0,0,0,0,null,null,null,0,"",{"$f":"CONCATENATE(\"(Z) \",$L$22)","v":"(Z) "},0,0,null,102]
[null,null,null,null,null,null,null,null,null,null,null,null,null,null,null,null,null,null,null,null,null,null,null,null,null,null,null,null,null,0,"||",0,null,null,null,null,null,null,null,0,0,0,0,null,"||",null,"Select Cable",0,0,0,0,0,0,0,null,null,null,0,"",{"$f":"CONCATENATE(\"(Z) \",$L$23)","v":"(Z) "},0,0,null,103]
[null,null,null,null,null,null,null,null,null,null,null,null,null,null,null,null,null,null,null,null,null,null,null,null,null,null,null,null,null,0,"||",0,null,null,null,null,null,null,null,0,0,0,0,null,"||",null,"Select Cable",0,0,0,0,0,0,0,null,null,null,0,"",{"$f":"CONCATENATE(\"(Z) \",$L$24)","v":"(Z) "},0,0,null,104]
[null,null,null,null,null,null,null,null,null,null,null,null,null,null,null,null,null,null,null,null,null,null,null,null,null,null,null,null,null,0,"||",0,null,null,null,null,null,null,null,0,0,0,0,null,"||",null,"Select Cable",0,0,0,0,0,0,0,null,null,null,0,"",{"$f":"CONCATENATE(\"(Z) \",$L$25)","v":"(Z) "},0,0,null,105]
[null,null,null,null,null,null,null,null,null,null,null,null,null,null,null,null,null,null,null,null,null,null,null,null,null,null,null,null,null,0,"||",0,null,null,null,null,null,null,null,0,0,0,0,null,"||",null,"Select Cable",0,0,0,0,0,0,0,null,null,null,0,"",{"$f":"CONCATENATE(\"(Z) \",$L$26)","v":"(Z) "},0,0,null,106]
[null,null,null,null,null,null,null,null,null,null,null,null,null,null,null,null,null,null,null,null,null,null,null,null,null,null,null,null,null,0,"||",0,null,null,null,null,null,null,null,0,0,0,0,null,"||",null,"Select Cable",0,0,0,0,0,0,0,null,null,null,0,"",{"$f":"CONCATENATE(\"(Z) \",$L$27)","v":"(Z) "},0,0,null,107]
[null,null,null,null,null,null,null,null,null,null,null,null,null,null,null,null,null,null,null,null,null,null,null,null,null,null,null,null,null,0,"||",0,null,null,null,null,null,null,null,0,0,0,0,null,"||",null,"Select Cable",0,0,0,0,0,0,0,null,null,null,0,"",{"$f":"CONCATENATE(\"(Z) \",$L$28)","v":"(Z) "},0,0,null,108]
[null,null,null,null,null,null,null,null,null,null,null,null,null,null,null,null,null,null,null,null,null,null,null,null,null,null,null,null,null,0,"||",0,null,null,null,null,null,null,null,0,0,0,0,null,"||",null,"Select Cable",0,0,0,0,0,0,0,null,null,null,0,"",{"$f":"CONCATENATE(\"(Z) \",$L$29)","v":"(Z) "},0,0,null,109]
[null,null,null,null,null,null,null,null,null,null,null,null,null,null,null,null,null,null,null,null,null,null,null,null,null,null,null,null,null,0,"||",0,null,null,null,null,null,null,null,0,0,0,0,null,"||",null,"Select Cable",0,0,0,0,0,0,0,null,null,null,0,"",{"$f":"CONCATENATE(\"(Z) \",$L$30)","v":"(Z) "},0,0,null,110]
[null,null,null,null,null,null,null,null,null,null,null,null,null,null,null,null,null,null,null,null,null,null,null,null,null,null,null,null,null,0,"||",0,null,null,null,null,null,null,null,0,0,0,0,null,"||",null,"Select Cable",0,0,0,0,0,0,0,null,null,null,0,"",{"$f":"CONCATENATE(\"(Z) \",$L$31)","v":"(Z) "},0,0,null,111]
[null,null,null,null,null,null,null,null,null,null,null,null,null,null,null,null,null,null,null,null,null,null,null,null,null,null,null,null,null,0,"||",0,null,null,null,null,null,null,null,0,0,0,0,null,"||",null,"Select Cable",0,0,0,0,0,0,0,null,null,null,0,"",{"$f":"CONCATENATE(\"(Z) \",$M$17)","v":"(Z) "},0,0,null,112]
[null,null,null,null,null,null,null,null,null,null,null,null,null,null,null,null,null,null,null,null,null,null,null,null,null,null,null,null,null,0,"||",0,null,null,null,null,null,null,null,0,0,0,0,null,"||",null,"Select Cable",0,0,0,0,0,0,0,null,null,null,0,"",{"$f":"CONCATENATE(\"(Z) \",$M$18)","v":"(Z) "},0,0,null,113]
[null,null,null,null,null,null,null,null,null,null,null,null,null,null,null,null,null,null,null,null,null,null,null,null,null,null,null,null,null,0,"||",0,null,null,null,null,null,null,null,0,0,0,0,null,"||",null,"Select Cable",0,0,0,0,0,0,0,null,null,null,0,"",{"$f":"CONCATENATE(\"(Z) \",$M$19)","v":"(Z) "},0,0,null,114]
[null,null,null,null,null,null,null,null,null,null,null,null,null,null,null,null,null,null,null,null,null,null,null,null,null,null,null,null,null,0,"||",0,null,null,null,null,null,null,null,0,0,0,0,null,"||",null,"Select Cable",0,0,0,0,0,0,0,null,null,null,0,"",{"$f":"CONCATENATE(\"(Z) \",$M$20)","v":"(Z) "},0,0,null,115]
[null,null,null,null,null,null,null,null,null,null,null,null,null,null,null,null,null,null,null,null,null,null,null,null,null,null,null,null,null,0,"||",0,null,null,null,null,null,null,null,0,0,0,0,null,"||",null,"Select Cable",0,0,0,0,0,0,0,null,null,null,0,"",{"$f":"CONCATENATE(\"(Z) \",$M$21)","v":"(Z) "},0,0,null,116]
[null,null,null,null,null,null,null,null,null,null,null,null,null,null,null,null,null,null,null,null,null,null,null,null,null,null,null,null,null,0,"||",0,null,null,null,null,null,null,null,0,0,0,0,null,"||",null,"Select Cable",0,0,0,0,0,0,0,null,null,null,0,"",{"$f":"CONCATENATE(\"(Z) \",$M$22)","v":"(Z) "},0,0,null,117]
[null,null,null,null,null,null,null,null,null,null,null,null,null,null,null,null,null,null,null,null,null,null,null,null,null,null,null,null,null,0,"||",0,null,null,null,null,null,null,null,0,0,0,0,null,"||",null,"Select Cable",0,0,0,0,0,0,0,null,null,null,0,"",{"$f":"CONCATENATE(\"(Z) \",$M$23)","v":"(Z) "},0,0,null,118]
[null,null,null,null,null,null,null,null,null,null,null,null,null,null,null,null,null,null,null,null,null,null,null,null,null,null,null,null,null,0,"||",0,null,null,null,null,null,null,null,0,0,0,0,null,"||",null,"Select Cable",0,0,0,0,0,0,0,null,null,null,0,"",{"$f":"CONCATENATE(\"(Z) \",$M$24)","v":"(Z) "},0,0,null,119]
[null,null,null,null,null,null,null,null,null,null,null,null,null,null,null,null,null,null,null,null,null,null,null,null,null,null,null,null,null,0,"||",0,null,null,null,null,null,null,null,0,0,0,0,null,"||",null,"Select Cable",0,0,0,0,0,0,0,null,null,null,0,"",{"$f":"CONCATENATE(\"(Z) \",$M$25)","v":"(Z) "},0,0,null,120]
[null,null,null,null,null,null,null,null,null,null,null,null,null,null,null,null,null,null,null,null,null,null,null,null,null,null,null,null,null,0,"||",0,null,null,null,null,null,null,null,0,0,0,0,null,"||",null,"Select Cable",0,0,0,0,0,0,0,null,null,null,0,"",{"$f":"CONCATENATE(\"(Z) \",$M$26)","v":"(Z) "},0,0,null,121]
[null,null,null,null,null,null,null,null,null,null,null,null,null,null,null,null,null,null,null,null,null,null,null,null,null,null,null,null,null,0,"||",0,null,null,null,null,null,null,null,0,0,0,0,null,"||",null,"Select Cable",0,0,0,0,0,0,0,null,null,null,0,"",{"$f":"CONCATENATE(\"(Z) \",$M$27)","v":"(Z) "},0,0,null,122]
[null,null,null,null,null,null,null,null,null,null,null,null,null,null,null,null,null,null,null,null,null,null,null,null,null,null,null,null,null,0,"||",0,null,null,null,null,null,null,null,0,0,0,0,null,"||",null,"Select Cable",0,0,0,0,0,0,0,null,null,null,0,"",{"$f":"CONCATENATE(\"(Z) \",$M$28)","v":"(Z) "},0,0,null,123]
[null,null,null,null,null,null,null,null,null,null,null,null,null,null,null,null,null,null,null,null,null,null,null,null,null,null,null,null,null,0,"||",0,null,null,null,null,null,null,null,0,0,0,0,null,"||",null,"Select Cable",0,0,0,0,0,0,0,null,null,null,0,"",{"$f":"CONCATENATE(\"(Z) \",$M$29)","v":"(Z) "},0,0,null,124]
[null,null,null,null,null,null,null,null,null,null,null,null,null,null,null,null,null,null,null,null,null,null,null,null,null,null,null,null,null,0,"||",0,null,null,null,null,null,null,null,0,0,0,0,null,"||",null,"Select Cable",0,0,0,0,0,0,0,null,null,null,0,"",{"$f":"CONCATENATE(\"(Z) \",$M$30)","v":"(Z) "},0,0,null,125]
[null,null,null,null,null,null,null,null,null,null,null,null,null,null,null,null,null,null,null,null,null,null,null,null,null,null,null,null,null,0,"||",0,null,null,null,null,null,null,null,0,0,0,0,null,"||",null,"Select Cable",0,0,0,0,0,0,0,null,null,null,0,"",{"$f":"CONCATENATE(\"(Z) \",$M$31)","v":"(Z) "},0,0,null,126]
[null,null,null,null,null,null,null,null,null,null,null,null,null,null,null,null,null,null,null,null,null,null,null,null,null,null,null,null,null,0,"||",0,null,null,null,null,null,null,null,0,0,0,0,null,"||",null,"Select Cable",0,0,0,0,0,0,0,null,null,null,0,"",{"$f":"CONCATENATE(\"(Z) \",$N$18)","v":"(Z) "},0,0,null,127]
[null,null,null,null,null,null,null,null,null,null,null,null,null,null,null,null,null,null,null,null,null,null,null,null,null,null,null,null,null,0,"||",0,null,null,null,null,null,null,null,0,0,0,0,null,"||",null,"Select Cable",0,0,0,0,0,0,0,null,null,null,0,"",{"$f":"CONCATENATE(\"(Z) \",$N$19)","v":"(Z) "},0,0,null,128]
[null,null,null,null,null,null,null,null,null,null,null,null,null,null,null,null,null,null,null,null,null,null,null,null,null,null,null,null,null,0,"||",0,null,null,null,null,null,null,null,0,0,0,0,null,{"$f":"AE137","v":"||"},null,"Select Cable",{"$f":"VLOOKUP($AU137,$BN$8:$BV$37,2,0)*($AT137/1000)*(100/$AY$6^2)","v":0},{"$f":"VLOOKUP($AU137,$BN$8:$BV$37,3,0)*($AT137/1000)*(100/$AY$6^2)","v":0},{"$f":"VLOOKUP($AU137,$BN$8:$BV$37,4,0)*(120*PI()*0.000001)*($AY$6^2/100)*($AT137/1000)","v":0},{"$f":"VLOOKUP($AU137,$BN$8:$BV$37,5,0)*($AT137/1000)*(100/$AY$6^2)","v":0},{"$f":"VLOOKUP($AU137,$BN$8:$BV$37,6,0)*($AT137/1000)*(100/$AY$6^2)","v":0},{"$f":"VLOOKUP($AU137,$BN$8:$BV$37,7,0)*(120*PI()*0.000001)*($AY$6^2/100)*($AT137/1000)","v":0},0,null,null,null,0,"",{"$f":"CONCATENATE(\"(Z) \",$N$20)","v":"(Z) "},0,0,null,129]
[null,null,null,null,null,null,null,null,null,null,null,null,null,null,null,null,null,null,null,null,null,null,null,null,null,null,null,null,null,{"$f":"IF(ISNA(VLOOKUP($BL138,$BF$9:$BH$239,2,0)),0,VLOOKUP($BL138,$BF$9:$BH$239,2,0))","v":0},{"$f":"IF(ISNA(VLOOKUP($BL138,$BF$9:$BH$239,3,0)),\"||\",VLOOKUP($BL138,$BF$9:$BH$239,3,0))","v":"||"},{"$f":"IF(AND(AE138<>\"||\",OR(AG138=0,AH138=0,AI138=0,AK138=0,AL138=0)),\"!\",0)","v":0},null,null,null,null,null,null,null,{"$f":"$AH138*$AG138^2","v":0},{"$f":"$AI138*$AG138^2","v":0},{"$f":"$AK138*$AG138^2","v":0},{"$f":"$AL138*$AG138^2","v":0},null,"||",null,"Select Cable",0,0,0,0,0,0,0,null,null,null,0,"",{"$f":"CONCATENATE(\"(Z) \",$N$21)","v":"(Z) "},0,0,null,130]
[null,null,null,null,null,null,null,null,null,null,null,null,null,null,null,null,null,null,null,null,null,null,null,null,null,null,null,null,null,0,"||",0,null,null,null,null,null,null,null,0,0,0,0,null,"||",null,"Select Cable",0,0,0,0,0,0,0,null,null,null,0,{"$f":"IF(BH139<>\"(Z) \",\"Input  -->\",\"\")","v":""},{"$f":"CONCATENATE(\"(Z) \",$N$22)","v":"(Z) "},0,{"$f":"IF(BI139=1,BJ138+1,BJ138)","v":0},null,131]
[null,null,null,null,null,null,null,null,null,null,null,null,null,null,null,null,null,null,null,null,null,null,null,null,null,null,null,null,null,0,"||",0,null,null,null,null,null,null,null,0,0,0,0,null,"||",null,"Select Cable",0,0,0,0,0,0,0,null,null,null,0,"",{"$f":"CONCATENATE(\"(Z) \",$N$23)","v":"(Z) "},0,0,null,132]
[null,null,null,null,null,null,null,null,null,null,null,null,null,null,null,null,null,null,null,null,null,null,null,null,null,null,null,null,null,0,"||",0,null,null,null,null,null,null,null,0,0,0,0,null,"||",null,"Select Cable",0,0,0,0,0,0,0,null,null,null,{"$f":"IF(BJ141>BJ140,BJ141,0)","v":0},"",{"$f":"CONCATENATE(\"(Z) \",$N$24)","v":"(Z) "},0,0,null,133]
[null,null,null,null,null,null,null,null,null,null,null,null,null,null,null,null,null,null,null,null,null,null,null,null,null,null,null,null,null,0,"||",0,null,null,null,null,null,null,null,0,0,0,0,null,"||",null,"Select Cable",0,0,0,0,0,0,0,null,null,null,0,"",{"$f":"CONCATENATE(\"(Z) \",$N$25)","v":"(Z) "},{"$f":"IF(BH142=\"(Z) \", 0,1)","v":0},0,null,134]
[null,null,null,null,null,null,null,null,null,null,null,null,null,null,null,null,null,null,null,null,null,null,null,null,null,null,null,null,null,0,"||",0,null,null,null,null,null,null,null,0,0,0,0,null,"||",null,"Select Cable",0,0,0,0,0,0,0,null,null,null,0,"",{"$f":"CONCATENATE(\"(Z) \",$N$26)","v":"(Z) "},0,0,null,135]
[null,null,null,null,null,null,null,null,null,null,null,null,null,null,null,null,null,null,null,null,null,null,null,null,null,null,null,null,null,0,"||",0,null,null,null,null,null,null,null,0,0,0,0,null,"||",null,"Select Cable",0,0,0,0,0,0,0,null,null,null,0,"",{"$f":"CONCATENATE(\"(Z) \",$N$27)","v":"(Z) "},0,0,null,136]
[null,null,null,null,null,null,null,null,null,null,null,null,null,null,null,null,null,null,null,null,null,null,null,null,null,null,null,null,null,0,"||",0,null,null,null,null,null,null,null,0,0,0,0,null,"||",null,"Select Cable",0,0,0,0,0,0,0,null,null,null,0,"",{"$f":"CONCATENATE(\"(Z) \",$N$28)","v":"(Z) "},0,0,null,137]
[null,null,null,null,null,null,null,null,null,null,null,null,null,null,null,null,null,null,null,null,null,null,null,null,null,null,null,null,null,0,"||",0,null,null,null,null,null,null,null,0,0,0,0,null,"||",null,"Select Cable",0,0,0,0,0,0,0,null,null,null,0,"",{"$f":"CONCATENATE(\"(Z) \",$N$29)","v":"(Z) "},0,0,null,138]
[null,null,null,null,null,null,null,null,null,null,null,null,null,null,null,null,null,null,null,null,null,null,null,null,null,null,null,null,null,0,"||",0,null,null,null,null,null,null,null,0,0,0,0,null,"||",null,"Select Cable",0,0,0,0,0,0,0,null,null,null,0,"",{"$f":"CONCATENATE(\"(Z) \",$N$30)","v":"(Z) "},0,0,null,139]
[null,null,null,null,null,null,null,null,null,null,null,null,null,null,null,null,null,null,null,null,null,null,null,null,null,null,null,null,null,0,"||",0,null,null,null,null,null,null,null,0,0,0,0,null,"||",null,"Select Cable",0,0,0,0,0,0,0,null,null,null,0,"",{"$f":"CONCATENATE(\"(Z) \",$N$31)","v":"(Z) "},0,0,null,140]
[null,null,null,null,null,null,null,null,null,null,null,null,null,null,null,null,null,null,null,null,null,null,null,null,null,null,null,null,null,0,"||",0,null,null,null,null,null,null,null,0,0,0,0,null,"||",null,"Select Cable",0,0,0,0,0,0,0,null,null,null,0,"",{"$f":"CONCATENATE(\"(Z) \",$O$19)","v":"(Z) "},0,0,null,141]
[null,null,null,null,null,null,null,null,null,null,null,null,null,null,null,null,null,null,null,null,null,null,null,null,null,null,null,null,null,0,"||",0,null,null,null,null,null,null,null,0,0,0,0,null,"||",null,"Select Cable",0,0,0,0,0,0,0,null,null,null,0,"",{"$f":"CONCATENATE(\"(Z) \",$O$20)","v":"(Z) "},0,0,null,142]
[null,null,null,null,null,null,null,null,null,null,null,null,null,null,null,null,null,null,null,null,null,null,null,null,null,null,null,null,null,0,"||",0,null,null,null,null,null,null,null,0,0,0,0,null,"||",null,"Select Cable",0,0,0,0,0,0,0,null,null,null,0,"",{"$f":"CONCATENATE(\"(Z) \",$O$21)","v":"(Z) "},0,0,null,143]
[null,null,null,null,null,null,null,null,null,null,null,null,null,null,null,null,null,null,null,null,null,null,null,null,null,null,null,null,null,0,"||",0,null,null,null,null,null,null,null,0,0,0,0,null,"||",null,"Select Cable",0,0,0,0,0,0,0,null,null,null,0,"",{"$f":"CONCATENATE(\"(Z) \",$O$22)","v":"(Z) "},0,0,null,144]
[null,null,null,null,null,null,null,null,null,null,null,null,null,null,null,null,null,null,null,null,null,null,null,null,null,null,null,null,null,0,"||",0,null,null,null,null,null,null,null,0,0,0,0,null,"||",null,"Select Cable",0,0,0,0,0,0,0,null,null,null,0,"",{"$f":"CONCATENATE(\"(Z) \",$O$23)","v":"(Z) "},0,0,null,145]
[null,null,null,null,null,null,null,null,null,null,null,null,null,null,null,null,null,null,null,null,null,null,null,null,null,null,null,null,null,0,"||",0,null,null,null,null,null,null,null,0,0,0,0,null,"||",null,"Select Cable",0,0,0,0,0,0,0,null,null,null,0,"",{"$f":"CONCATENATE(\"(Z) \",$O$24)","v":"(Z) "},0,0,null,146]
[null,null,null,null,null,null,null,null,null,null,null,null,null,null,null,null,null,null,null,null,null,null,null,null,null,null,null,null,null,0,"||",0,null,null,null,null,null,null,null,0,0,0,0,null,"||",null,"Select Cable",0,0,0,0,0,0,0,null,null,null,0,"",{"$f":"CONCATENATE(\"(Z) \",$O$25)","v":"(Z) "},0,0,null,147]
[null,null,null,null,null,null,null,null,null,null,null,null,null,null,null,null,null,null,null,null,null,null,null,null,null,null,null,null,null,0,"||",0,null,null,null,null,null,null,null,0,0,0,0,null,"||",null,"Select Cable",0,0,0,0,0,0,0,null,null,null,0,"",{"$f":"CONCATENATE(\"(Z) \",$O$26)","v":"(Z) "},0,0,null,148]
[null,null,null,null,null,null,null,null,null,null,null,null,null,null,null,null,null,null,null,null,null,null,null,null,null,null,null,null,null,0,"||",0,null,null,null,null,null,null,null,0,0,0,0,null,"||",null,"Select Cable",0,0,0,0,0,0,0,null,null,null,0,"",{"$f":"CONCATENATE(\"(Z) \",$O$27)","v":"(Z) "},0,0,null,149]
[null,null,null,null,null,null,null,null,null,null,null,null,null,null,null,null,null,null,null,null,null,null,null,null,null,null,null,null,null,0,"||",0,null,null,null,null,null,null,null,0,0,0,0,null,"||",null,"Select Cable",0,0,0,0,0,0,0,null,null,null,0,"",{"$f":"CONCATENATE(\"(Z) \",$O$28)","v":"(Z) "},0,0,null,150]
[null,null,null,null,null,null,null,null,null,null,null,null,null,null,null,null,null,null,null,null,null,null,null,null,null,null,null,null,null,0,"||",0,null,null,null,null,null,null,null,0,0,0,0,null,"||",null,"Select Cable",0,0,0,0,0,0,0,null,null,null,0,"",{"$f":"CONCATENATE(\"(Z) \",$O$29)","v":"(Z) "},0,0,null,151]
[null,null,null,null,null,null,null,null,null,null,null,null,null,null,null,null,null,null,null,null,null,null,null,null,null,null,null,null,null,0,"||",0,null,null,null,null,null,null,null,0,0,0,0,null,"||",null,"Select Cable",0,0,0,0,0,0,0,null,null,null,0,"",{"$f":"CONCATENATE(\"(Z) \",$O$30)","v":"(Z) "},0,0,null,152]
[null,null,null,null,null,null,null,null,null,null,null,null,null,null,null,null,null,null,null,null,null,null,null,null,null,null,null,null,null,0,"||",0,null,null,null,null,null,null,null,0,0,0,0,null,"||",null,"Select Cable",0,0,0,0,0,0,0,null,null,null,0,"",{"$f":"CONCATENATE(\"(Z) \",$O$31)","v":"(Z) "},0,0,null,153]
[null,null,null,null,null,null,null,null,null,null,null,null,null,null,null,null,null,null,null,null,null,null,null,null,null,null,null,null,null,0,"||",0,null,null,null,null,null,null,null,0,0,0,0,null,"||",null,"Select Cable",0,0,0,0,0,0,0,null,null,null,0,"",{"$f":"CONCATENATE(\"(Z) \",$P$20)","v":"(Z) "},0,0,null,154]
[null,null,null,null,null,null,null,null,null,null,null,null,null,null,null,null,null,null,null,null,null,null,null,null,null,null,null,null,null,0,"||",0,null,null,null,null,null,null,null,0,0,0,0,null,"||",null,"Select Cable",0,0,0,0,0,0,0,null,null,null,0,"",{"$f":"CONCATENATE(\"(Z) \",$P$21)","v":"(Z) "},0,0,null,155]
[null,null,null,null,null,null,null,null,null,null,null,null,null,null,null,null,null,null,null,null,null,null,null,null,null,null,null,null,null,0,"||",0,null,null,null,null,null,null,null,0,0,0,0,null,"||",null,"Select Cable",0,0,0,0,0,0,0,null,null,null,0,"",{"$f":"CONCATENATE(\"(Z) \",$P$22)","v":"(Z) "},0,0,null,156]
[null,null,null,null,null,null,null,null,null,null,null,null,null,null,null,null,null,null,null,null,null,null,null,null,null,null,null,null,null,0,"||",0,null,null,null,null,null,null,null,0,0,0,0,null,"||",null,"Select Cable",0,0,0,0,0,0,0,null,null,null,0,"",{"$f":"CONCATENATE(\"(Z) \",$P$23)","v":"(Z) "},0,0,null,157]
[null,null,null,null,null,null,null,null,null,null,null,null,null,null,null,null,null,null,null,null,null,null,null,null,null,null,null,null,null,0,"||",0,null,null,null,null,null,null,null,0,0,0,0,null,"||",null,"Select Cable",0,0,0,0,0,0,0,null,null,null,0,"",{"$f":"CONCATENATE(\"(Z) \",$P$24)","v":"(Z) "},0,0,null,158]
[null,null,null,null,null,null,null,null,null,null,null,null,null,null,null,null,null,null,null,null,null,null,null,null,null,null,null,null,null,0,"||",0,null,null,null,null,null,null,null,0,0,0,0,null,"||",null,"Select Cable",0,0,0,0,0,0,0,null,null,null,0,"",{"$f":"CONCATENATE(\"(Z) \",$P$25)","v":"(Z) "},0,0,null,159]
[null,null,null,null,null,null,null,null,null,null,null,null,null,null,null,null,null,null,null,null,null,null,null,null,null,null,null,null,null,0,"||",0,null,null,null,null,null,null,null,0,0,0,0,null,"||",null,"Select Cable",0,0,0,0,0,0,0,null,null,null,0,"",{"$f":"CONCATENATE(\"(Z) \",$P$26)","v":"(Z) "},0,0,null,160]
[null,null,null,null,null,null,null,null,null,null,null,null,null,null,null,null,null,null,null,null,null,null,null,null,null,null,null,null,null,0,"||",0,null,null,null,null,null,null,null,0,0,0,0,null,"||",null,"Select Cable",0,0,0,0,0,0,0,null,null,null,0,"",{"$f":"CONCATENATE(\"(Z) \",$P$27)","v":"(Z) "},0,0,null,161]
[null,null,null,null,null,null,null,null,null,null,null,null,null,null,null,null,null,null,null,null,null,null,null,null,null,null,null,null,null,0,"||",0,null,null,null,null,null,null,null,0,0,0,0,null,"||",null,"Select Cable",0,0,0,0,0,0,0,null,null,null,0,"",{"$f":"CONCATENATE(\"(Z) \",$P$28)","v":"(Z) "},0,0,null,162]
[null,null,null,null,null,null,null,null,null,null,null,null,null,null,null,null,null,null,null,null,null,null,null,null,null,null,null,null,null,0,"||",0,null,null,null,null,null,null,null,0,0,0,0,null,"||",null,"Select Cable",0,0,0,0,0,0,0,null,null,null,0,"",{"$f":"CONCATENATE(\"(Z) \",$P$29)","v":"(Z) "},0,0,null,163]
[null,null,null,null,null,null,null,null,null,null,null,null,null,null,null,null,null,null,null,null,null,null,null,null,null,null,null,null,null,0,"||",0,null,null,null,null,null,null,null,0,0,0,0,null,"||",null,"Select Cable",0,0,0,0,0,0,0,null,null,null,0,"",{"$f":"CONCATENATE(\"(Z) \",$P$30)","v":"(Z) "},0,0,null,164]
[null,null,null,null,null,null,null,null,null,null,null,null,null,null,null,null,null,null,null,null,null,null,null,null,null,null,null,null,null,0,"||",0,null,null,null,null,null,null,null,0,0,0,0,null,"||",null,"Select Cable",0,0,0,0,0,0,{"$f":"IF(AND(AS137<>\"||\",OR(AV137=0,AW137=0,AY137=0,AZ137=0)),\" !\",0)","v":0},null,null,null,0,"",{"$f":"CONCATENATE(\"(Z) \",$P$31)","v":"(Z) "},0,0,null,165]
[null,null,null,null,null,null,null,null,null,null,null,null,null,null,null,null,null,null,null,null,null,null,null,null,null,null,null,null,null,0,"||",0,null,null,null,null,null,null,null,0,0,0,0,null,"||",null,"Select Cable",0,0,0,0,0,0,0,null,null,null,0,"",{"$f":"CONCATENATE(\"(Z) \",$Q$21)","v":"(Z) "},0,0,null,166]
[null,null,null,null,null,null,null,null,null,null,null,null,null,null,null,null,null,null,null,null,null,null,null,null,null,null,null,null,null,0,"||",0,null,null,null,null,null,null,null,0,0,0,0,null,"||",null,"Select Cable",0,0,0,0,0,0,0,null,null,null,0,"",{"$f":"CONCATENATE(\"(Z) \",$Q$22)","v":"(Z) "},0,0,null,167]
[null,null,null,null,null,null,null,null,null,null,null,null,null,null,null,null,null,null,null,null,null,null,null,null,null,null,null,null,null,0,"||",0,null,null,null,null,null,null,null,0,0,0,0,null,"||",null,"Select Cable",0,0,0,0,0,0,0,null,null,null,0,"",{"$f":"CONCATENATE(\"(Z) \",$Q$23)","v":"(Z) "},0,0,null,168]
[null,null,null,null,null,null,null,null,null,null,null,null,null,null,null,null,null,null,null,null,null,null,null,null,null,null,null,null,null,0,"||",0,null,null,null,null,null,null,null,0,0,0,0,null,"||",null,"Select Cable",0,0,0,0,0,0,0,null,null,null,0,"",{"$f":"CONCATENATE(\"(Z) \",$Q$24)","v":"(Z) "},0,0,null,169]
[null,null,null,null,null,null,null,null,null,null,null,null,null,null,null,null,null,null,null,null,null,null,null,null,null,null,null,null,null,0,"||",0,null,null,null,null,null,null,null,0,0,0,0,null,"||",null,"Select Cable",0,0,0,0,0,0,0,null,null,null,0,"",{"$f":"CONCATENATE(\"(Z) \",$Q$25)","v":"(Z) "},0,0,null,170]
[null,null,null,null,null,null,null,null,null,null,null,null,null,null,null,null,null,null,null,null,null,null,null,null,null,null,null,null,null,0,"||",0,null,null,null,null,null,null,null,0,0,0,0,null,"||",null,"Select Cable",0,0,0,0,0,0,0,null,null,null,0,"",{"$f":"CONCATENATE(\"(Z) \",$Q$26)","v":"(Z) "},0,0,null,171]
[null,null,null,null,null,null,null,null,null,null,null,null,null,null,null,null,null,null,null,null,null,null,null,null,null,null,null,null,null,0,"||",0,null,null,null,null,null,null,null,0,0,0,0,null,"||",null,"Select Cable",0,0,0,0,0,0,0,null,null,null,0,"",{"$f":"CONCATENATE(\"(Z) \",$Q$27)","v":"(Z) "},0,0,null,172]
[null,null,null,null,null,null,null,null,null,null,null,null,null,null,null,null,null,null,null,null,null,null,null,null,null,null,null,null,null,0,"||",0,null,null,null,null,null,null,null,0,0,0,0,null,"||",null,"Select Cable",0,0,0,0,0,0,0,null,null,null,0,"",{"$f":"CONCATENATE(\"(Z) \",$Q$28)","v":"(Z) "},0,0,null,173]
[null,null,null,null,null,null,null,null,null,null,null,null,null,null,null,null,null,null,null,null,null,null,null,null,null,null,null,null,null,0,"||",0,null,null,null,null,null,null,null,0,0,0,0,null,"||",null,"Select Cable",0,0,0,0,0,0,0,null,null,null,0,"",{"$f":"CONCATENATE(\"(Z) \",$Q$29)","v":"(Z) "},0,0,null,174]
[null,null,null,null,null,null,null,null,null,null,null,null,null,null,null,null,null,null,null,null,null,null,null,null,null,null,null,null,null,0,"||",0,null,null,null,null,null,null,null,0,0,0,0,null,"||",null,"Select Cable",0,0,0,0,0,0,0,null,null,null,0,"",{"$f":"CONCATENATE(\"(Z) \",$Q$30)","v":"(Z) "},0,0,null,175]
[null,null,null,null,null,null,null,null,null,null,null,null,null,null,null,null,null,null,null,null,null,null,null,null,null,null,null,null,null,0,"||",0,null,null,null,null,null,null,null,0,0,0,0,null,"||",null,"Select Cable",0,0,0,0,0,0,0,null,null,null,0,"",{"$f":"CONCATENATE(\"(Z) \",$Q$31)","v":"(Z) "},0,0,null,176]
[null,null,null,null,null,null,null,null,null,null,null,null,null,null,null,null,null,null,null,null,null,null,null,null,null,null,null,null,null,0,"||",0,null,null,null,null,null,null,null,0,0,0,0,null,"||",null,"Select Cable",0,0,0,0,0,0,0,null,null,null,0,"",{"$f":"CONCATENATE(\"(Z) \",$R$22)","v":"(Z) "},0,0,null,177]
[null,null,null,null,null,null,null,null,null,null,null,null,null,null,null,null,null,null,null,null,null,null,null,null,null,null,null,null,null,0,"||",0,null,null,null,null,null,null,null,0,0,0,0,null,"||",null,"Select Cable",0,0,0,0,0,0,0,null,null,null,0,"",{"$f":"CONCATENATE(\"(Z) \",$R$23)","v":"(Z) "},0,0,null,178]
[null,null,null,null,null,null,null,null,null,null,null,null,null,null,null,null,null,null,null,null,null,null,null,null,null,null,null,null,null,0,"||",0,null,null,null,null,null,null,null,0,0,0,0,null,"||",null,"Select Cable",0,0,0,0,0,0,0,null,null,null,0,"",{"$f":"CONCATENATE(\"(Z) \",$R$24)","v":"(Z) "},0,0,null,179]
[null,null,null,null,null,null,null,null,null,null,null,null,null,null,null,null,null,null,null,null,null,null,null,null,null,null,null,null,null,0,"||",0,null,null,null,null,null,null,null,0,0,0,0,null,"||",null,"Select Cable",0,0,0,0,0,0,0,null,null,null,0,"",{"$f":"CONCATENATE(\"(Z) \",$R$25)","v":"(Z) "},0,0,null,180]
[null,null,null,null,null,null,null,null,null,null,null,null,null,null,null,null,null,null,null,null,null,null,null,null,null,null,null,null,null,0,"||",0,null,null,null,null,null,null,null,0,0,0,0,null,"||",null,"Select Cable",0,0,0,0,0,0,0,null,null,null,0,"",{"$f":"CONCATENATE(\"(Z) \",$R$26)","v":"(Z) "},0,0,null,181]
[null,null,null,null,null,null,null,null,null,null,null,null,null,null,null,null,null,null,null,null,null,null,null,null,null,null,null,null,null,0,"||",0,null,null,null,null,null,null,null,0,0,0,0,null,"||",null,"Select Cable",0,0,0,0,0,0,0,null,null,null,0,"",{"$f":"CONCATENATE(\"(Z) \",$R$27)","v":"(Z) "},0,0,null,182]
[null,null,null,null,null,null,null,null,null,null,null,null,null,null,null,null,null,null,null,null,null,null,null,null,null,null,null,null,null,0,"||",0,null,null,null,null,null,null,null,0,0,0,0,null,"||",null,"Select Cable",0,0,0,0,0,0,0,null,null,null,0,"",{"$f":"CONCATENATE(\"(Z) \",$R$28)","v":"(Z) "},0,0,null,183]
[null,null,null,null,null,null,null,null,null,null,null,null,null,null,null,null,null,null,null,null,null,null,null,null,null,null,null,null,null,0,"||",0,null,null,null,null,null,null,null,0,0,0,0,null,"||",null,"Select Cable",0,0,0,0,0,0,0,null,null,null,0,"",{"$f":"CONCATENATE(\"(Z) \",$R$29)","v":"(Z) "},0,0,null,184]
[null,null,null,null,null,null,null,null,null,null,null,null,null,null,null,null,null,null,null,null,null,null,null,null,null,null,null,null,null,0,"||",0,null,null,null,null,null,null,null,0,0,0,0,null,"||",null,"Select Cable",0,0,0,0,0,0,0,null,null,null,0,"",{"$f":"CONCATENATE(\"(Z) \",$R$30)","v":"(Z) "},0,0,null,185]
[null,null,null,null,null,null,null,null,null,null,null,null,null,null,null,null,null,null,null,null,null,null,null,null,null,null,null,null,null,0,"||",0,null,null,null,null,null,null,null,0,0,0,0,null,"||",null,"Select Cable",0,0,0,0,0,0,0,null,null,null,0,"",{"$f":"CONCATENATE(\"(Z) \",$R$31)","v":"(Z) "},0,0,null,186]
[null,null,null,null,null,null,null,null,null,null,null,null,null,null,null,null,null,null,null,null,null,null,null,null,null,null,null,null,null,0,"||",0,null,null,null,null,null,null,null,0,0,0,0,null,"||",null,"Select Cable",0,0,0,0,0,0,0,null,null,null,0,"",{"$f":"CONCATENATE(\"(Z) \",$S$23)","v":"(Z) "},0,0,null,187]
[null,null,null,null,null,null,null,null,null,null,null,null,null,null,null,null,null,null,null,null,null,null,null,null,null,null,null,null,null,0,"||",0,null,null,null,null,null,null,null,0,0,0,0,null,"||",null,"Select Cable",0,0,0,0,0,0,0,null,null,null,0,"",{"$f":"CONCATENATE(\"(Z) \",$S$24)","v":"(Z) "},0,0,null,188]
[null,null,null,null,null,null,null,null,null,null,null,null,null,null,null,null,null,null,null,null,null,null,null,null,null,null,null,null,null,0,"||",0,null,null,null,null,null,null,null,0,0,0,0,null,"||",null,"Select Cable",0,0,0,0,0,0,0,null,null,null,0,"",{"$f":"CONCATENATE(\"(Z) \",$S$25)","v":"(Z) "},0,0,null,189]
[null,null,null,null,null,null,null,null,null,null,null,null,null,null,null,null,null,null,null,null,null,null,null,null,null,null,null,null,null,0,"||",0,null,null,null,null,null,null,null,0,0,0,0,null,"||",null,"Select Cable",0,0,0,0,0,0,0,null,null,null,0,"",{"$f":"CONCATENATE(\"(Z) \",$S$26)","v":"(Z) "},0,0,null,190]
[null,null,null,null,null,null,null,null,null,null,null,null,null,null,null,null,null,null,null,null,null,null,null,null,null,null,null,null,null,0,"||",0,null,null,null,null,null,null,null,0,0,0,0,null,"||",null,"Select Cable",0,0,0,0,0,0,0,null,null,null,0,"",{"$f":"CONCATENATE(\"(Z) \",$S$27)","v":"(Z) "},0,0,null,191]
[null,null,null,null,null,null,null,null,null,null,null,null,null,null,null,null,null,null,null,null,null,null,null,null,null,null,null,null,null,0,"||",0,null,null,null,null,null,null,null,0,0,0,0,null,"||",null,"Select Cable",0,0,0,0,0,0,0,null,null,null,0,"",{"$f":"CONCATENATE(\"(Z) \",$S$28)","v":"(Z) "},0,0,null,192]
[null,null,null,null,null,null,null,null,null,null,null,null,null,null,null,null,null,null,null,null,null,null,null,null,null,null,null,null,null,0,"||",0,null,null,null,null,null,null,null,0,0,0,0,null,{"$f":"AE201","v":"||"},null,"Select Cable",{"$f":"VLOOKUP($AU201,$BN$8:$BV$37,2,0)*($AT201/1000)*(100/$AY$6^2)","v":0},{"$f":"VLOOKUP($AU201,$BN$8:$BV$37,3,0)*($AT201/1000)*(100/$AY$6^2)","v":0},{"$f":"VLOOKUP($AU201,$BN$8:$BV$37,4,0)*(120*PI()*0.000001)*($AY$6^2/100)*($AT201/1000)","v":0},{"$f":"VLOOKUP($AU201,$BN$8:$BV$37,5,0)*($AT201/1000)*(100/$AY$6^2)","v":0},{"$f":"VLOOKUP($AU201,$BN$8:$BV$37,6,0)*($AT201/1000)*(100/$AY$6^2)","v":0},{"$f":"VLOOKUP($AU201,$BN$8:$BV$37,7,0)*(120*PI()*0.000001)*($AY$6^2/100)*($AT201/1000)","v":0},0,null,null,null,0,"",{"$f":"CONCATENATE(\"(Z) \",$S$29)","v":"(Z) "},0,0,null,193]
[null,null,null,null,null,null,null,null,null,null,null,null,null,null,null,null,null,null,null,null,null,null,null,null,null,null,null,null,null,{"$f":"IF(ISNA(VLOOKUP($BL202,$BF$9:$BH$239,2,0)),0,VLOOKUP($BL202,$BF$9:$BH$239,2,0))","v":0},{"$f":"IF(ISNA(VLOOKUP($BL202,$BF$9:$BH$239,3,0)),\"||\",VLOOKUP($BL202,$BF$9:$BH$239,3,0))","v":"||"},{"$f":"IF(AND(AE202<>\"||\",OR(AG202=0,AH202=0,AI202=0,AK202=0,AL202=0)),\"!\",0)","v":0},null,null,null,null,null,null,null,{"$f":"$AH202*$AG202^2","v":0},{"$f":"$AI202*$AG202^2","v":0},{"$f":"$AK202*$AG202^2","v":0},{"$f":"$AL202*$AG202^2","v":0},null,"||",null,"Select Cable",0,0,0,0,0,0,0,null,null,null,0,"",{"$f":"CONCATENATE(\"(Z) \",$S$30)","v":"(Z) "},0,0,null,194]
[null,null,null,null,null,null,null,null,null,null,null,null,null,null,null,null,null,null,null,null,null,null,null,null,null,null,null,null,null,0,"||",0,null,null,null,null,null,null,null,0,0,0,0,null,"||",null,"Select Cable",0,0,0,0,0,0,0,null,null,null,0,{"$f":"IF(BH203<>\"(Z) \",\"Input  -->\",\"\")","v":""},{"$f":"CONCATENATE(\"(Z) \",$S$31)","v":"(Z) "},0,{"$f":"IF(BI203=1,BJ202+1,BJ202)","v":0},null,195]
[null,null,null,null,null,null,null,null,null,null,null,null,null,null,null,null,null,null,null,null,null,null,null,null,null,null,null,null,null,0,"||",0,null,null,null,null,null,null,null,0,0,0,0,null,"||",null,"Select Cable",0,0,0,0,0,0,0,null,null,null,0,"",{"$f":"CONCATENATE(\"(Z) \",$T$24)","v":"(Z) "},0,0,null,196]
[null,null,null,null,null,null,null,null,null,null,null,null,null,null,null,null,null,null,null,null,null,null,null,null,null,null,null,null,null,0,"||",0,null,null,null,null,null,null,null,0,0,0,0,null,"||",null,"Select Cable",0,0,0,0,0,0,0,null,null,null,{"$f":"IF(BJ205>BJ204,BJ205,0)","v":0},"",{"$f":"CONCATENATE(\"(Z) \",$T$25)","v":"(Z) "},0,0,null,197]
[null,null,null,null,null,null,null,null,null,null,null,null,null,null,null,null,null,null,null,null,null,null,null,null,null,null,null,null,null,0,"||",0,null,null,null,null,null,null,null,0,0,0,0,null,"||",null,"Select Cable",0,0,0,0,0,0,0,null,null,null,0,"",{"$f":"CONCATENATE(\"(Z) \",$T$26)","v":"(Z) "},{"$f":"IF(BH206=\"(Z) \", 0,1)","v":0},0,null,198]
[null,null,null,null,null,null,null,null,null,null,null,null,null,null,null,null,null,null,null,null,null,null,null,null,null,null,null,null,null,0,"||",0,null,null,null,null,null,null,null,0,0,0,0,null,"||",null,"Select Cable",0,0,0,0,0,0,0,null,null,null,0,"",{"$f":"CONCATENATE(\"(Z) \",$T$27)","v":"(Z) "},0,0,null,199]
[null,null,null,null,null,null,null,null,null,null,null,null,null,null,null,null,null,null,null,null,null,null,null,null,null,null,null,null,null,0,"||",0,null,null,null,null,null,null,null,0,0,0,0,null,"||",null,"Select Cable",0,0,0,0,0,0,0,null,null,null,0,"",{"$f":"CONCATENATE(\"(Z) \",$T$28)","v":"(Z) "},0,0,null,200]
[null,null,null,null,null,null,null,null,null,null,null,null,null,null,null,null,null,null,null,null,null,null,null,null,null,null,null,null,null,0,"||",0,null,null,null,null,null,null,null,0,0,0,0,null,"||",null,"Select Cable",0,0,0,0,0,0,0,null,null,null,0,"",{"$f":"CONCATENATE(\"(Z) \",$T$29)","v":"(Z) "},0,0,null,201]
[null,null,null,null,null,null,null,null,null,null,null,null,null,null,null,null,null,null,null,null,null,null,null,null,null,null,null,null,null,0,"||",0,null,null,null,null,null,null,null,0,0,0,0,null,"||",null,"Select Cable",0,0,0,0,0,0,0,null,null,null,0,"",{"$f":"CONCATENATE(\"(Z) \",$T$30)","v":"(Z) "},0,0,null,202]
[null,null,null,null,null,null,null,null,null,null,null,null,null,null,null,null,null,null,null,null,null,null,null,null,null,null,null,null,null,0,"||",0,null,null,null,null,null,null,null,0,0,0,0,null,"||",null,"Select Cable",0,0,0,0,0,0,0,null,null,null,0,"",{"$f":"CONCATENATE(\"(Z) \",$T$31)","v":"(Z) "},0,0,null,203]
[null,null,null,null,null,null,null,null,null,null,null,null,null,null,null,null,null,null,null,null,null,null,null,null,null,null,null,null,null,0,"||",0,null,null,null,null,null,null,null,0,0,0,0,null,"||",null,"Select Cable",0,0,0,0,0,0,0,null,null,null,0,"",{"$f":"CONCATENATE(\"(Z) \",$U$25)","v":"(Z) "},0,0,null,204]
[null,null,null,null,null,null,null,null,null,null,null,null,null,null,null,null,null,null,null,null,null,null,null,null,null,null,null,null,null,0,"||",0,null,null,null,null,null,null,null,0,0,0,0,null,"||",null,"Select Cable",0,0,0,0,0,0,0,null,null,null,0,"",{"$f":"CONCATENATE(\"(Z) \",$U$26)","v":"(Z) "},0,0,null,205]
[null,null,null,null,null,null,null,null,null,null,null,null,null,null,null,null,null,null,null,null,null,null,null,null,null,null,null,null,null,0,"||",0,null,null,null,null,null,null,null,0,0,0,0,null,"||",null,"Select Cable",0,0,0,0,0,0,0,null,null,null,0,"",{"$f":"CONCATENATE(\"(Z) \",$U$27)","v":"(Z) "},0,0,null,206]
[null,null,null,null,null,null,null,null,null,null,null,null,null,null,null,null,null,null,null,null,null,null,null,null,null,null,null,null,null,0,"||",0,null,null,null,null,null,null,null,0,0,0,0,null,"||",null,"Select Cable",0,0,0,0,0,0,0,null,null,null,0,"",{"$f":"CONCATENATE(\"(Z) \",$U$28)","v":"(Z) "},0,0,null,207]
[null,null,null,null,null,null,null,null,null,null,null,null,null,null,null,null,null,null,null,null,null,null,null,null,null,null,null,null,null,0,"||",0,null,null,null,null,null,null,null,0,0,0,0,null,"||",null,"Select Cable",0,0,0,0,0,0,0,null,null,null,0,"",{"$f":"CONCATENATE(\"(Z) \",$U$29)","v":"(Z) "},0,0,null,208]
[null,null,null,null,null,null,null,null,null,null,null,null,null,null,null,null,null,null,null,null,null,null,null,null,null,null,null,null,null,0,"||",0,null,null,null,null,null,null,null,0,0,0,0,null,"||",null,"Select Cable",0,0,0,0,0,0,0,null,null,null,0,"",{"$f":"CONCATENATE(\"(Z) \",$U$30)","v":"(Z) "},0,0,null,209]
[null,null,null,null,null,null,null,null,null,null,null,null,null,null,null,null,null,null,null,null,null,null,null,null,null,null,null,null,null,0,"||",0,null,null,null,null,null,null,null,0,0,0,0,null,"||",null,"Select Cable",0,0,0,0,0,0,0,null,null,null,0,"",{"$f":"CONCATENATE(\"(Z) \",$U$31)","v":"(Z) "},0,0,null,210]
[null,null,null,null,null,null,null,null,null,null,null,null,null,null,null,null,null,null,null,null,null,null,null,null,null,null,null,null,null,0,"||",0,null,null,null,null,null,null,null,0,0,0,0,null,"||",null,"Select Cable",0,0,0,0,0,0,0,null,null,null,0,"",{"$f":"CONCATENATE(\"(Z) \",$V$26)","v":"(Z) "},0,0,null,211]
[null,null,null,null,null,null,null,null,null,null,null,null,null,null,null,null,null,null,null,null,null,null,null,null,null,null,null,null,null,0,"||",0,null,null,null,null,null,null,null,0,0,0,0,null,"||",null,"Select Cable",0,0,0,0,0,0,0,null,null,null,0,"",{"$f":"CONCATENATE(\"(Z) \",$V$27)","v":"(Z) "},0,0,null,212]
[null,null,null,null,null,null,null,null,null,null,null,null,null,null,null,null,null,null,null,null,null,null,null,null,null,null,null,null,null,0,"||",0,null,null,null,null,null,null,null,0,0,0,0,null,"||",null,"Select Cable",0,0,0,0,0,0,0,null,null,null,0,"",{"$f":"CONCATENATE(\"(Z) \",$V$28)","v":"(Z) "},0,0,null,213]
[null,null,null,null,null,null,null,null,null,null,null,null,null,null,null,null,null,null,null,null,null,null,null,null,null,null,null,null,null,0,"||",0,null,null,null,null,null,null,null,0,0,0,0,null,"||",null,"Select Cable",0,0,0,0,0,0,0,null,null,null,0,"",{"$f":"CONCATENATE(\"(Z) \",$V$29)","v":"(Z) "},0,0,null,214]
[null,null,null,null,null,null,null,null,null,null,null,null,null,null,null,null,null,null,null,null,null,null,null,null,null,null,null,null,null,0,"||",0,null,null,null,null,null,null,null,0,0,0,0,null,"||",null,"Select Cable",0,0,0,0,0,0,0,null,null,null,0,"",{"$f":"CONCATENATE(\"(Z) \",$V$30)","v":"(Z) "},0,0,null,215]
[null,null,null,null,null,null,null,null,null,null,null,null,null,null,null,null,null,null,null,null,null,null,null,null,null,null,null,null,null,0,"||",0,null,null,null,null,null,null,null,0,0,0,0,null,"||",null,"Select Cable",0,0,0,0,0,0,0,null,null,null,0,"",{"$f":"CONCATENATE(\"(Z) \",$V$31)","v":"(Z) "},0,0,null,216]
[null,null,null,null,null,null,null,null,null,null,null,null,null,null,null,null,null,null,null,null,null,null,null,null,null,null,null,null,null,0,"||",0,null,null,null,null,null,null,null,0,0,0,0,null,"||",null,"Select Cable",0,0,0,0,0,0,0,null,null,null,0,"",{"$f":"CONCATENATE(\"(Z) \",$W$27)","v":"(Z) "},0,0,null,217]
[null,null,null,null,null,null,null,null,null,null,null,null,null,null,null,null,null,null,null,null,null,null,null,null,null,null,null,null,null,0,"||",0,null,null,null,null,null,null,null,0,0,0,0,null,"||",null,"Select Cable",0,0,0,0,0,0,0,null,null,null,0,"",{"$f":"CONCATENATE(\"(Z) \",$W$28)","v":"(Z) "},0,0,null,218]
[null,null,null,null,null,null,null,null,null,null,null,null,null,null,null,null,null,null,null,null,null,null,null,null,null,null,null,null,null,0,"||",0,null,null,null,null,null,null,null,0,0,0,0,null,"||",null,"Select Cable",0,0,0,0,0,0,0,null,null,null,0,"",{"$f":"CONCATENATE(\"(Z) \",$W$29)","v":"(Z) "},0,0,null,219]
[null,null,null,null,null,null,null,null,null,null,null,null,null,null,null,null,null,null,null,null,null,null,null,null,null,null,null,null,null,0,"||",0,null,null,null,null,null,null,null,0,0,0,0,null,"||",null,"Select Cable",0,0,0,0,0,0,0,null,null,null,0,"",{"$f":"CONCATENATE(\"(Z) \",$W$30)","v":"(Z) "},0,0,null,220]
[null,null,null,null,null,null,null,null,null,null,null,null,null,null,null,null,null,null,null,null,null,null,null,null,null,null,null,null,null,0,"||",0,null,null,null,null,null,null,null,0,0,0,0,null,"||",null,"Select Cable",0,0,0,0,0,0,0,null,null,null,0,"",{"$f":"CONCATENATE(\"(Z) \",$W$31)","v":"(Z) "},0,0,null,221]
[null,null,null,null,null,null,null,null,null,null,null,null,null,null,null,null,null,null,null,null,null,null,null,null,null,null,null,null,null,0,"||",0,null,null,null,null,null,null,null,0,0,0,0,null,"||",null,"Select Cable",0,0,0,0,0,0,0,null,null,null,0,"",{"$f":"CONCATENATE(\"(Z) \",$X$28)","v":"(Z) "},0,0,null,222]
[null,null,null,null,null,null,null,null,null,null,null,null,null,null,null,null,null,null,null,null,null,null,null,null,null,null,null,null,null,0,"||",0,null,null,null,null,null,null,null,0,0,0,0,null,"||",null,"Select Cable",0,0,0,0,0,0,0,null,null,null,0,"",{"$f":"CONCATENATE(\"(Z) \",$X$29)","v":"(Z) "},0,0,null,223]
[null,null,null,null,null,null,null,null,null,null,null,null,null,null,null,null,null,null,null,null,null,null,null,null,null,null,null,null,null,0,"||",0,null,null,null,null,null,null,null,0,0,0,0,null,"||",null,"Select Cable",0,0,0,0,0,0,0,null,null,null,0,"",{"$f":"CONCATENATE(\"(Z) \",$X$30)","v":"(Z) "},0,0,null,224]
[null,null,null,null,null,null,null,null,null,null,null,null,null,null,null,null,null,null,null,null,null,null,null,null,null,null,null,null,null,0,"||",0,null,null,null,null,null,null,null,0,0,0,0,null,"||",null,"Select Cable",0,0,0,0,0,0,0,null,null,null,0,"",{"$f":"CONCATENATE(\"(Z) \",$X$31)","v":"(Z) "},0,0,null,225]
[null,null,null,null,null,null,null,null,null,null,null,null,null,null,null,null,null,null,null,null,null,null,null,null,null,null,null,null,null,0,"||",0,null,null,null,null,null,null,null,0,0,0,0,null,"||",null,"Select Cable",0,0,0,0,0,0,0,null,null,null,0,"",{"$f":"CONCATENATE(\"(Z) \",$Y$29)","v":"(Z) "},0,0,null,226]
[null,null,null,null,null,null,null,null,null,null,null,null,null,null,null,null,null,null,null,null,null,null,null,null,null,null,null,null,null,0,"||",0,null,null,null,null,null,null,null,0,0,0,0,null,"||",null,"Select Cable",0,0,0,0,0,0,0,null,null,null,0,"",{"$f":"CONCATENATE(\"(Z) \",$Y$30)","v":"(Z) "},0,0,null,227]
[null,null,null,null,null,null,null,null,null,null,null,null,null,null,null,null,null,null,null,null,null,null,null,null,null,null,null,null,null,0,"||",0,null,null,null,null,null,null,null,0,0,0,0,null,"||",null,"Select Cable",0,0,0,0,0,0,0,null,null,null,0,"",{"$f":"CONCATENATE(\"(Z) \",$Y$31)","v":"(Z) "},0,0,null,228]
[null,null,null,null,null,null,null,null,null,null,null,null,null,null,null,null,null,null,null,null,null,null,null,null,null,null,null,null,null,0,"||",0,null,null,null,null,null,null,null,0,0,0,0,null,"||",null,"Select Cable",0,0,0,0,0,0,{"$f":"IF(AND(AS201<>\"||\",OR(AV201=0,AW201=0,AY201=0,AZ201=0)),\" !\",0)","v":0},null,null,null,0,"",{"$f":"CONCATENATE(\"(Z) \",$Z$30)","v":"(Z) "},0,0,null,229]
[null,null,null,null,null,null,null,null,null,null,null,null,null,null,null,null,null,null,null,null,null,null,null,null,null,null,null,null,null,0,"||",0,null,null,null,null,null,null,null,0,0,0,0,null,"||",null,"Select Cable",0,0,0,0,0,0,{"$f":"IF(AND(AS239<>\"||\",OR(AV239=0,AW239=0,AY239=0,AZ239=0)),\" !\",0)","v":0},null,null,null,0,"",{"$f":"CONCATENATE(\"(Z) \",$Z$31)","v":"(Z) "},0,0,null,230]
[null,null,null,null,null,null,null,null,null,null,null,null,null,null,null,null,null,null,null,null,null,null,null,null,null,null,null,null,null,0,"||",0,null,null,null,null,null,null,null,0,0,0,0,null,"||",null,"Select Cable",0,0,0,0,0,0,null,null,null,null,0,"",{"$f":"CONCATENATE(\"(Z) \",$AA$31)","v":"(Z) "},0,0,null,231]
[null,null,null,null,null,null,null,null,null,null,null,null,null,null,null,null,null,null,null,null,null,null,null,null,null,null,null,null,null,null,null,null,null,null,null,null,null,null,null,{"$f":"SUM(AN9:AN239)","v":0},{"$f":"SUM(AO9:AO239)","v":0},{"$f":"SUM(AP9:AP239)","v":0},{"$f":"SUM(AQ9:AQ239)","v":0},"<-- Σzi*n'i^2"]
[null,null,null,null,null,null,null,null,null,null,null,null,null,null,null,null,null,null,null,null,null,null,null,null,null,null,null,null,null,null,null,"Nth Feeder Data =",{"$f":"$AE$5","v":0},null,null,{"$f":"SUM(AJ9:AJ239)","v":0},null,null,{"$f":"SUM(AM9:AM239)","v":0},{"$f":"IF(ISERROR(AN$240/$AE$5^2),\"\",AN$240/$AE$5^2)","v":""},{"$f":"IF(ISERROR(AO$240/$AE$5^2),\"\",AO$240/$AE$5^2)","v":""},{"$f":"IF(ISERROR(AP$240/$AE$5^2),\"\",AP$240/$AE$5^2)","v":""},{"$f":"IF(ISERROR(AQ$240/$AE$5^2),\"\",AQ$240/$AE$5^2)","v":""},"<-- Zeq = [Σzi*n'i^2]/N^2"]
[null,null,null,null,null,null,null,null,null,null,null,null,null,null,null,null,null,null,null,null,null,null,null,null,null,null,null,null,null,null,null,null,null,null,null,"B+",null,null,"Bo","R+","X+","Ro","Xo"]
[]
[]
[null,null,null,null,null,null,null,null,null,null,null,null,null,null,null,null,null,null,null,null,null,null,null,null,null,null,null,null,null,null,null,null,null,"R+","X+","B+","Ro","Xo","Bo"]
[null,null,null,null,null,null,null,null,null,null,null,null,null,null,null,null,null,null,null,null,null,null,null,null,null,null,null,null,null,null,null,"Nth Feeder Data =",{"$f":"$AE$5","v":0},{"$f":"AN241","v":""},{"$f":"AO241","v":""},{"$f":"AJ241","v":0},{"$f":"AP241","v":""},{"$f":"AQ241","v":""},{"$f":"AM241","v":0}]
[]
[null,null,null,null,null,null,null,null,null,null,null,null,null,null,null,null,null,null,null,null,null,null,null,null,null,null,null,null,null,null,null,null,"Equivalence Multiple \"Equivalent\" Feeders to a Single Feeder"]
[null,null,null,null,null,null,null,null,null,null,null,null,null,null,null,null,null,null,null,null,null,null,null,null,null,null,null,null,null,null,null,null,{"$f":"$G$4","v":"Test Wind Plant"}]
[null,null,null,null,null,null,null,null,null,null,null,null,null,null,null,null,null,null,null,null,null,null,null,null,null,null,null,null,null,"Collector System (kV) =",34.5]
[null,null,null,null,null,null,null,null,null,null,null,null,null,null,null,null,null,null,null,null,null,null,null,null,null,null,null,null,null,"MVA of Each Turbine =",{"$f":"AE6","v":0}]
[null,null,null,null,null,null,null,null,null,null,null,null,null,null,null,null,null,null,null,null,null,null,null,null,null,null,null,null,null,"Rated Phase Current (Amps) =",{"$f":"AE251*1000/(AE250*SQRT(3))","v":0},null,null,null,null,null,null,null,null,null,"Calculated Values"]
[null,null,null,null,null,null,null,null,null,null,null,null,null,null,null,null,null,null,null,null,null,null,null,null,null,null,null,null,null,null,null,null,null,"R+","X+","B+","Ro","Xo","Bo","R+ n^2","X+ n^2","Ro n^2","Xo n^2"]
[null,null,null,null,null,null,null,null,null,null,null,null,null,null,null,null,null,null,null,null,null,null,null,null,null,null,null,null,null,null,null,"Equivalent Feeder 1 --> ",6,5.8812341011458841E-3,2.4370463721440408E-3,2.3557468132392079E-4,1.1838549324371629E-2,1.4961842750122521E-3,2.3557468132392079E-4,{"$f":"AH254*$AG254^2","v":0.21172442764125182},{"$f":"AI254*$AG254^2","v":8.7733669397185465E-2},{"$f":"AK254*$AG254^2","v":0.42618777567737864},{"$f":"AL254*$AG254^2","v":5.3862633900441076E-2}]
[null,null,null,null,null,null,null,null,null,null,null,null,null,null,null,null,null,null,null,null,null,null,null,null,null,null,null,null,null,null,null,"Equivalent Feeder 2 --> ",null,null,null,null,null,null,null,{"$f":"AH255*$AG255^2","v":0},0,{"$f":"AK255*$AG255^2","v":0},0]
[null,null,null,null,null,null,null,null,null,null,null,null,null,null,null,null,null,null,null,null,null,null,null,null,null,null,null,null,null,null,null,"Equivalent Feeder 3 --> ",null,null,null,null,null,null,null,0,0,0,0]
[null,null,null,null,null,null,null,null,null,null,null,null,null,null,null,null,null,null,null,null,null,null,null,null,null,null,null,null,null,null,null,"Equivalent Feeder 4 --> ",null,null,null,null,null,null,null,0,0,0,0]
[null,null,null,null,null,null,null,null,null,null,null,null,null,null,null,null,null,null,null,null,null,null,null,null,null,null,null,null,null,null,null,"Equivalent Feeder 5 --> ",null,null,null,null,null,null,null,0,0,0,0]
[null,null,null,null,null,null,null,null,null,null,null,null,null,null,null,null,null,null,null,null,null,null,null,null,null,null,null,null,null,null,null,"Equivalent Feeder 6 --> ",null,null,null,null,null,null,null,0,0,0,0]
[null,null,null,null,null,null,null,null,null,null,null,null,null,null,null,null,null,null,null,null,null,null,null,null,null,null,null,null,null,null,null,"Equivalent Feeder 7 --> ",null,null,null,null,null,null,null,0,0,0,0]
[null,null,null,null,null,null,null,null,null,null,null,null,null,null,null,null,null,null,null,null,null,null,null,null,null,null,null,null,null,null,null,"Equivalent Feeder 8 --> ",null,null,null,null,null,null,null,0,0,0,0]
[null,null,null,null,null,null,null,null,null,null,null,null,null,null,null,null,null,null,null,null,null,null,null,null,null,null,null,null,null,null,null,"Equivalent Feeder 9 --> ",null,null,null,null,null,null,null,0,0,0,0]
[null,null,null,null,null,null,null,null,null,null,null,null,null,null,null,null,null,null,null,null,null,null,null,null,null,null,null,null,null,null,null,null,{"$f":"SUM(AG254:AG262)","v":6},"<-- Σni",null,null,null,null,null,{"$f":"SUM(AN254:AN262)","v":0.21172442764125182},{"$f":"SUM(AO254:AO262)","v":8.7733669397185465E-2},{"$f":"SUM(AP254:AP262)","v":0.42618777567737864},{"$f":"SUM(AQ254:AQ262)","v":5.3862633900441076E-2},"<-- Σzi*ni^2"]
[null,null,null,null,null,null,null,null,null,null,null,null,null,null,null,null,null,null,null,null,null,null,null,null,null,null,null,null,null,null,null,null,{"$f":"SUM(AG254:AG262)^2","v":36},"<-- [Σni]^2",null,{"$f":"SUM(AJ254:AJ262)","v":2.3557468132392079E-4},null,null,{"$f":"SUM(AM254:AM262)","v":2.3557468132392079E-4},{"$f":"IF(ISERROR(AN$263/$AG$264),\"\",AN$263/$AG$264)","v":5.8812341011458841E-3},{"$f":"IF(ISERROR(AO$263/$AG$264),\"\",AO$263/$AG$264)","v":2.4370463721440408E-3},{"$f":"IF(ISERROR(AP$263/$AG$264),\"\",AP$263/$AG$264)","v":1.1838549324371629E-2},{"$f":"IF(ISERROR(AQ$263/$AG$264),\"\",AQ$263/$AG$264)","v":1.4961842750122521E-3},"<-- Zeq = [Σzi*ni^2]/[Σni]^2"]
[null,null,null,null,null,null,null,null,null,null,null,null,null,null,null,null,null,null,null,null,null,null,null,null,null,null,null,null,null,null,null,null,null,null,null,"B+",null,null,"Bo","R+","X+","Ro","Xo"]
[]
[]
[null,null,null,null,null,null,null,null,null,null,null,null,null,null,null,null,null,null,null,null,null,null,null,null,null,null,null,null,null,null,null,null,null,null,"MVA =",{"$f":"AE251*AG263","v":0}]
[null,null,null,null,null,null,null,null,null,null,null,null,null,null,null,null,null,null,null,null,null,null,null,null,null,null,null,null,null,null,null,null,null,null,"Irated (amps) =",{"$f":"AG263*AE252","v":0}]
[]
[null,null,null,null,null,null,null,null,null,null,null,null,null,null,null,null,null,null,null,null,null,null,null,null,null,null,null,null,null,null,null,null,null,null,null,{"$f":"CONCATENATE($AE$4,\" kV\")","v":"34.5 kV"}]
[]
[]
[null,null,null,null,null,null,null,null,null,null,null,null,null,null,null,null,null,null,null,null,null,null,null,null,null,null,null,null,null,null,null,null,null,null,null,"R+ =",{"$f":"AN264","v":5.8812341011458841E-3}]
[null,null,null,null,null,null,null,null,null,null,null,null,null,null,null,null,null,null,null,null,null,null,null,null,null,null,null,null,null,null,null,null,null,null,null,"X+ =",{"$f":"AO264","v":2.4370463721440408E-3}]
[null,null,null,null,null,null,null,null,null,null,null,null,null,null,null,null,null,null,null,null,null,null,null,null,null,null,null,null,null,null,null,null,null,null,null,"B+ =",{"$f":"AJ264","v":2.3557468132392079E-4}]
[null,null,null,null,null,null,null,null,null,null,null,null,null,null,null,null,null,null,null,null,null,null,null,null,null,null,null,null,null,null,null,null,null,null,null,"B+/2 =",{"$f":"AK276/2","v":1.1778734066196039E-4}]
[]
[null,null,null,null,null,null,null,null,null,null,null,null,null,null,null,null,null,null,null,null,null,null,null,null,null,null,null,null,null,null,null,null,null,null,null,"Ro =",{"$f":"AP264","v":1.1838549324371629E-2}]
[null,null,null,null,null,null,null,null,null,null,null,null,null,null,null,null,null,null,null,null,null,null,null,null,null,null,null,null,null,null,null,null,null,null,null,"Xo =",{"$f":"AQ264","v":1.4961842750122521E-3}]
[null,null,null,null,null,null,null,null,null,null,null,null,null,null,null,null,null,null,null,null,null,null,null,null,null,null,null,null,null,null,null,null,null,null,null,"Bo =",{"$f":"AM264","v":2.3557468132392079E-4}]
[null,null,null,null,null,null,null,null,null,null,null,null,null,null,null,null,null,null,null,null,null,null,null,null,null,null,null,null,null,null,null,null,null,null,null,"Bo/2 =",{"$f":"AK281/2","v":1.1778734066196039E-4}]